Workbook

Sheet Ax9-P1-MDO-Nao Desonerado
A1: Manutenção Elétrica - Pregão Eletrônico nº 067/2021
A2: ANEXO 9 - Planilha 1 - Resumo de Composição de Custos para a Equipe de Dedicação Exclusiva - Não Desonerado
A4: Subitem | B4: Especificação | C4: Categoria (cargo) | D4: Nº de profissionais | E4: Salário Base (R$) | F4: Adicional de Periculosidade | G4: Adicional Noturno | H4: Valor Unitário Mensal (R$) | I4: Valor Total Mensal (R$) | J4: Valor Total Para 30 (Trinta) Meses (R$)
D5: (A) | H5: (B) | I5: (C)=(A)*(B) | J5: (D)=(C)*30
A6: 1.1 | B6: SF-01403 | C6: Supervisor Técnico – Sistema Elétrico | D6: 2 | E6: 9366.57 | F6: 0.3 | H6: 24203.43 | I6: =ROUND(H6*D6,2) -> 48406.86 | J6: =I6*30 -> 1452205.8
A7: 1.2 | B7: SF-01404 | C7: Supervisor Técnico – Sistema Elétrico e Segurança do Trabalho | D7: 1 | E7: 9366.57 | F7: 0.3 | H7: 24200.29 | I7: =ROUND(H7*D7,2) -> 24200.29 | J7: =I7*30 -> 726008.7
A8: 1.3 | B8: SF-01405 | C8: Técnico em Segurança do Trabalho | D8: 1 | E8: 2964.47 | F8: 0.3 | H8: 8314.53 | I8: 8314.53 | J8: 249435.9
A9: 1.4 | B9: SF-01406 | C9: Auxiliar de Almoxarifado | D9: 2 | E9: 1218.82 | H9: 3267.87 | I9: 6535.74 | J9: 196072.2
A10: 1.5 | B10: SF-01407 | C10: Auxiliar Administrativo | D10: 2 | E10: 1218.82 | H10: 3266.78 | I10: 6533.56 | J10: 196006.8
A11: 1.6 | B11: SF-01408 | C11: Desenhista Técnico | D11: 2 | E11: 2539.22 | F11: 0.3 | H11: 7297.47 | I11: 14594.94 | J11: 437848.2
A12: 1.7 | B12: SF-01409 | C12: Técnico em Eletrotécnica Encarregado | D12: 6 | E12: 2608.22 | F12: 0.3 | H12: 7531.46 | I12: 45188.76 | J12: 1355662.8
A13: 1.8 | B13: SF-01410 | C13: Técnico em Eletrotécnica Planejador de Manutenção | D13: 1 | E13: 2778.32 | F13: 0.3 | H13: 7878.18 | I13: 7878.18 | J13: 236345.4
A14: 1.9 | B14: SF-01411 | C14: Técnico em Eletrotécnica Termografista | D14: 1 | E14: 2835.02 | F14: 0.3 | H14: 8072.52 | I14: 8072.52 | J14: 242175.6
A15: 1.10 | B15: SF-01412 | C15: Técnico em Eletrotécnica | D15: 17 | E15: 2539.22 | F15: 0.3 | H15: 7324.12 | I15: 124510.04 | J15: 3735301.2
A16: 1.11 | B16: SF-01413 | C16: Eletricista | D16: 17 | E16: 1829.14 | H16: 4470.37 | I16: 75996.29 | J16: 2279888.7
A17: 1.12 | B17: SF-01414 | C17: Auxiliar de Eletricista | D17: 14 | E17: 1324.07 | H17: 3528.01 | I17: 49392.14 | J17: 1481764.2
A18: 1.13 | B18: SF-01415 | C18: Técnico em Eletromecânica | D18: 2 | E18: 2539.22 | F18: 0.3 | H18: 7306.93 | I18: 14613.86 | J18: 438415.8
A19: 1.14 | B19: SF-01416 | C19: Técnico em Automação | D19: 5 | E19: 2539.22 | F19: 0.3 | H19: 7316.11 | I19: 36580.55 | J19: 1097416.5
A20: 1.15 | B20: SF-01417 | C20: Técnico em Eletrotécnica Plantonista (diurno) | D20: 4 | E20: 2539.22 | F20: 0.3 | H20: 7474.89 | I20: 29899.56 | J20: 896986.8
A21: 1.16 | B21: SF-01418 | C21: Técnico em Eletrotécnica Plantonista (noturno) | D21: 4 | E21: 2539.22 | F21: 0.3 | G21: 0.2 | H21: 8381.86 | I21: 33527.44 | J21: 1005823.2
A22: 1.17 | B22: SF-01419 | C22: Eletricista Plantonista (diurno) | D22: 8 | E22: 1829.14 | H22: 4408.71 | I22: 35269.68 | J22: 1058090.4
A23: 1.18 | B23: SF-01420 | C23: Eletricista Plantonista (noturno) | D23: 8 | E23: 1829.14 | G23: 0.2 | H23: 4911.31 | I23: 39290.48 | J23: 1178714.4
A24: 1.19 | B24: SF-01421 | C24: Eletricista Plantonista – Áreas Restritas (diurno) | D24: 6 | E24: 1829.14 | F24: 0.3 | H24: 5617.8 | I24: 33706.8 | J24: 1011204
A25: 1.20 | B25: SF-01422 | C25: Eletricista Plantonista – Áreas Restritas (noturno) | D25: 6 | E25: 1829.14 | F25: 0.3 | G25: 0.2 | H25: 6271.13 | I25: 37626.78 | J25: 1128803.4
A26: Total | D26: 109
A27: 1 | B27: Subtotal de Equipe de Dedicação Exclusiva para 30 Meses (R$) | J27: =SUM(J6:J25) -> 20404170

Sheet SubAx9.1-MDO-Desonerado
A1: Manutenção Elétrica - Pregão Eletrônico nº 067/2021
A2: SUBANEXO 9.1 - Resumo de Composição de Custos para a Equipe de Dedicação Exclusiva - Desonerado
A4: Subitem | B4: Especificação | C4: Categoria (cargo) | D4: Nº de profissionais | E4: Salário Base (R$) | F4: Adicional de Periculosidade | G4: Adicional Noturno | H4: Valor Unitário Mensal (R$) | I4: Valor Total Mensal (R$) | J4: Valor Total Para 30 (Trinta) Meses (R$)
D5: (A) | H5: (B) | I5: (C)=(A)*(B) | J5: (D)=(C)*30
A6: 1.1 | B6: SF-01403 | C6: Supervisor Técnico – Sistema Elétrico | D6: 2 | E6: 9366.57 | F6: 0.3 | H6: 22036.29 | I6: =ROUND(H6*D6,2) -> 44072.58 | J6: =I6*30 -> 1322177.4
A7: 1.2 | B7: SF-01404 | C7: Supervisor Técnico – Sistema Elétrico e Segurança do Trabalho | D7: 1 | E7: 9366.57 | F7: 0.3 | H7: 22032.98 | I7: =ROUND(H7*D7,2) -> 22032.98 | J7: =I7*30 -> 660989.4
A8: 1.3 | B8: SF-01405 | C8: Técnico em Segurança do Trabalho | D8: 1 | E8: 2964.47 | F8: 0.3 | H8: 7664.9 | I8: 7664.9 | J8: 229947
A9: 1.4 | B9: SF-01406 | C9: Auxiliar de Almoxarifado | D9: 2 | E9: 1218.82 | H9: 3097.75 | I9: 6195.5 | J9: 185865
A10: 1.5 | B10: SF-01407 | C10: Auxiliar Administrativo | D10: 2 | E10: 1218.82 | H10: 3096.6 | I10: 6193.2 | J10: 185796
A11: 1.6 | B11: SF-01408 | C11: Desenhista Técnico | D11: 2 | E11: 2539.22 | F11: 0.3 | H11: 6750.76 | I11: 13501.52 | J11: 405045.6
A12: 1.7 | B12: SF-01409 | C12: Técnico em Eletrotécnica Encarregado | D12: 6 | E12: 2608.22 | F12: 0.3 | H12: 6971.85 | I12: 41831.1 | J12: 1254933
A13: 1.8 | B13: SF-01410 | C13: Técnico em Eletrotécnica Planejador de Manutenção | D13: 1 | E13: 2778.32 | F13: 0.3 | H13: 7274.06 | I13: 7274.06 | J13: 218221.8
A14: 1.9 | B14: SF-01411 | C14: Técnico em Eletrotécnica Termografista | D14: 1 | E14: 2835.02 | F14: 0.3 | H14: 7457.92 | I14: 7457.92 | J14: 223737.6
A15: 1.10 | B15: SF-01412 | C15: Técnico em Eletrotécnica | D15: 17 | E15: 2539.22 | F15: 0.3 | H15: 6778.89 | I15: 115241.13 | J15: 3457233.9
A16: 1.11 | B16: SF-01413 | C16: Eletricista | D16: 17 | E16: 1829.14 | H16: 4191.07 | I16: 71248.19 | J16: 2137445.7
A17: 1.12 | B17: SF-01414 | C17: Auxiliar de Eletricista | D17: 14 | E17: 1324.07 | H17: 3341.99 | I17: 46787.86 | J17: 1403635.8
A18: 1.13 | B18: SF-01415 | C18: Técnico em Eletromecânica | D18: 2 | E18: 2539.22 | F18: 0.3 | H18: 6760.75 | I18: 13521.5 | J18: 405645
A19: 1.14 | B19: SF-01416 | C19: Técnico em Automação | D19: 5 | E19: 2539.22 | F19: 0.3 | H19: 6770.44 | I19: 33852.2 | J19: 1015566
A20: 1.15 | B20: SF-01417 | C20: Técnico em Eletrotécnica Plantonista (diurno) | D20: 4 | E20: 2539.22 | F20: 0.3 | H20: 6868.26 | I20: 27473.04 | J20: 824191.2
A21: 1.16 | B21: SF-01418 | C21: Técnico em Eletrotécnica Plantonista (noturno) | D21: 4 | E21: 2539.22 | F21: 0.3 | G21: 0.2 | H21: 7689.36 | I21: 30757.44 | J21: 922723.2
A22: 1.17 | B22: SF-01419 | C22: Eletricista Plantonista (diurno) | D22: 8 | E22: 1829.14 | H22: 4087.34 | I22: 32698.72 | J22: 980961.6
A23: 1.18 | B23: SF-01420 | C23: Eletricista Plantonista (noturno) | D23: 8 | E23: 1829.14 | G23: 0.2 | H23: 4542.33 | I23: 36338.64 | J23: 1090159.2
A24: 1.19 | B24: SF-01421 | C24: Eletricista Plantonista – Áreas Restritas (diurno) | D24: 6 | E24: 1829.14 | F24: 0.3 | H24: 5193.7 | I24: 31162.2 | J24: 934866
A25: 1.20 | B25: SF-01422 | C25: Eletricista Plantonista – Áreas Restritas (noturno) | D25: 6 | E25: 1829.14 | F25: 0.3 | G25: 0.2 | H25: 5785.2 | I25: 34711.2 | J25: 1041336
A26: Total | D26: 109
A27: 1 | B27: Subtotal de Equipe de Dedicação Exclusiva para 30 Meses (R$) | J27: =SUM(J6:J25) -> 18900476.4

Sheet Ax9-P1-EPIs e Uniformes
A1: Manutenção Elétrica - Pregão Eletrônico nº 067/2021
A2: ANEXO 9 - Planilha 1 - Complementação - EPIs e Uniformes
A4: Especificação | B4: Descrição | C4: Unid. | D4: Quantidade Estimada p/ 30 (Trinta) Meses | E4: Preço Unitário (R$) | F4: Preço Total (R$)
D5: (A) | E5: (B) | F5: (C)=(A)*(B)
A6: SF-02572 | B6: Luva isolante classe 0 | C6: par | D6: 156 | E6: 375 | F6: =ROUND(E6*D6,2) -> 58500
A7: SF-02573 | B7: Luva isolante classe 2 | C7: par | D7: 24 | E7: 415.68 | F7: =ROUND(E7*D7,2) -> 9976.32
A8: SF-02574 | B8: Luva de cobertura para luva isolante | C8: par | D8: 180 | E8: 28.91 | F8: 5203.8
A9: SF-02575 | B9: Bolsa para luvas isolantes | C9: un | D9: 180 | E9: 36.59 | F9: 6586.2
A10: SF-00827 | B10: Calçado isolante elétrico | C10: par | D10: 320 | E10: 152.56 | F10: 48819.2
A11: SF-02576 | B11: Vestimenta antichama classe 2 | C11: un | D11: 348 | E11: 247.5 | F11: 86130
A12: SF-02577 | B12: Vestimenta antichama classe 4 | C12: un | D12: 4 | E12: 1458 | F12: 5832
A13: SF-02578 | B13: Capuz antichama classe 4 | C13: un | D13: 4 | E13: 1799.99 | F13: 7199.96
A14: SF-02579 | B14: Balaclava antichama classe 2 | C14: un | D14: 4 | E14: 128.39 | F14: 513.56
A15: SF-00830 | B15: Capacete de segurança | C15: un | D15: 320 | E15: 45.32 | F15: 14502.4
A16: SF-00836 | B16: Óculos de segurança | C16: un | D16: 650 | E16: 8.46 | F16: 5499
A17: SF-00837 | B17: Protetor auricular de inserção | C17: un | D17: 525 | E17: 2.49 | F17: 1307.25
A18: SF-02580 | B18: Protetor auricular tipo abafador dielétrico | C18: un | D18: 30 | E18: 30.06 | F18: 901.8
A19: SF-00838 | B19: Protetor facial | C19: un | D19: 78 | E19: 179.5 | F19: 14001
A20: SF-02581 | B20: Respirador PFF-2 | C20: un | D20: 718 | E20: 9.1 | F20: 6533.8
A21: SF-02582 | B21: Luva nitrílica | C21: cx | D21: 100 | E21: 123.9 | F21: 12390
A22: SF-02583 | B22: Luva de nylon com banho em PU | C22: par | D22: 474 | E22: 4.2 | F22: 1990.8
A23: SF-02584 | B23: Luva de vaqueta | C23: par | D23: 163 | E23: 11.14 | F23: 1815.82
A24: SF-02585 | B24: Capacete de segurança para trabalho em altura | C24: un | D24: 50 | E24: 160.11 | F24: 8005.5
A25: SF-00828 | B25: Bota de PVC | C25: par | D25: 59 | E25: 38.38 | F25: 2264.42
A26: SF-02586 | B26: Luva para proteção química | C26: par | D26: 295 | E26: 7.89 | F26: 2327.55
A27: SF-02587 | B27: Luva pigmentada | C27: par | D27: 494 | E27: 2.73 | F27: 1348.62
A28: SF-02588 | B28: Protetor solar | C28: L | D28: 150 | E28: 104.17 | F28: 15625.5
A29: SF-02589 | B29: Sabonete desengraxante | C29: L | D29: 150 | E29: 19.86 | F29: 2979
A30: SF-00829 | B30: Capa de chuva | C30: un | D30: 200 | E30: 15.93 | F30: 3186
A31: Subtotal de EPIs para 30 meses (R$) | F31: =SUM(F6:F30) -> 323439.5
A33: Especificação | B33: Descrição | C33: Unid. | D33: Quantidade Estimada p/ 30 (Trinta) Meses | E33: Preço Unitário (R$) | F33: Preço Total (R$)
D34: (A) | E34: (B) | F34: (C)=(A)*(B)
A35: SF-02571 | B35: Camiseta de manga curta com identificação da empresa | C35: un | D35: 750 | E35: 36.38 | F35: =ROUND(E35*D35,2) -> 27285
A36: SF-00825 | B36: Calça | C36: un | D36: 750 | E36: 41.9 | F36: 31425
A37: Subtotal de uniformes para 30 meses (R$) | F37: =SUM(F35:F36) -> 58710

Sheet Ax9-P2-Serviços
A1: Manutenção Elétrica - Pregão Eletrônico nº 067/2021
A2: ANEXO 9 - Planilha 2 – Composição de Custos para os Serviços sob Demanda
A4: Subitem | B4: Especificação | C4: Descrição | D4: Unid. | E4: Quantidade Estimada p/ 30 (Trinta) Meses | F4: Custo Unitário (R$) | G4: Custo Direto (R$) | H4: BDI (%) | I4: Preço Unitário com BDI (R$) | J4: Preço Total (R$)
E5: (A) | I5: (B) | J5: (C)=(A)*(B)
A6: 2.1 | B6: SF-02368 | C6: Análise físico-química de óleo isolante | D6: un | E6: 25 | F6: 170.22 | G6: =ROUND(E6*F6,2) -> 4255.5 | H6: =BDI!$E$17 -> 0.1126 | I6: =ROUND(F6*(1+H6),2) -> 189.39 | J6: =E6*I6 -> 4734.75
A7: 2.2 | B7: SF-02369 | C7: Análise de gases dissolvidos em óleo isolante | D7: un | E7: 25 | F7: 132.81 | G7: =ROUND(E7*F7,2) -> 3320.25 | H7: =BDI!$E$17 -> 0.1126 | I7: =ROUND(F7*(1+H7),2) -> 147.76 | J7: =E7*I7 -> 3694
A8: 2.3 | B8: SF-02370 | C8: Análise de teor de PCB em óleo isolante | D8: un | E8: 5 | F8: 361.31 | G8: 1806.55 | H8: =BDI!$E$17 -> 0.1126 | I8: 401.99 | J8: 2009.95
A9: 2.4 | B9: SF-02371 | C9: Descarte de lâmpadas | D9: un | E9: 30000 | F9: 1.5 | G9: 45000 | H9: =BDI!$E$17 -> 0.1126 | I9: 1.67 | J9: 50100
A10: 2.5 | B10: SF-02372 | C10: Descarte de reatores e demais resíduos eletroeletrônicos | D10: kg | E10: 2000 | F10: 0.98 | G10: 1960 | H10: =BDI!$E$17 -> 0.1126 | I10: 1.09 | J10: 2180
A11: 2.6 | B11: SF-02373 | C11: Aluguel de caminhão munck | D11: dia | E11: 30 | F11: 1200 | G11: 36000 | H11: =BDI!$E$17 -> 0.1126 | I11: 1335.12 | J11: 40053.6
A12: 2.7 | B12: SF-02374 | C12: Aluguel de plataforma aérea | D12: dia | E12: 30 | F12: 1503.33 | G12: 45099.9 | H12: =BDI!$E$17 -> 0.1126 | I12: 1672.6 | J12: 50178
A13: 2.8 | B13: SF-02375 | C13: Aluguel de empilhadeira | D13: dia | E13: 5 | F13: 750 | G13: 3750 | H13: =BDI!$E$17 -> 0.1126 | I13: 834.45 | J13: 4172.25
A14: 2.9 | B14: SF-02377 | C14: Aluguel de grupo motor-gerador de 200 kVA | D14: dia | E14: 10 | F14: 1740 | G14: 17400 | H14: =BDI!$E$17 -> 0.1126 | I14: 1935.92 | J14: 19359.2
A15: 2.10 | B15: SF-02378 | C15: Hora de funcionamento grupo motor-gerador de 200 kVA | D15: h | E15: 100 | F15: 250 | G15: 25000 | H15: =BDI!$E$17 -> 0.1126 | I15: 278.15 | J15: 27815
A16: 2.11 | B16: SF-02379 | C16: Solda exotérmica | D16: un | E16: 1000 | F16: =OFFSET(INDEX('Ax9-P2-Comp.Serviços'!A:H,MATCH(B16,'Ax9-P2-Comp.Serviços'!A:A,0),8),2,0) -> 39.0317 | G16: 39031.7 | H16: =BDI!$B$17 -> 0.191 | I16: 46.49 | J16: 46490
A17: 2 | B17: Subtotal de Serviços sob Demanda para 30 Meses com BDI (R$) | J17: =SUBTOTAL(109,J6:J16) -> 250786.75

Sheet Ax9-P2-Comp.Serviços
A1: Manutenção Elétrica - Pregão Eletrônico nº 067/2021
A2: Composições de Custos Unitários de Serviços
A4: Especificação | B4: Descrição | C4: Discriminação da Composição | D4: Unidade | E4: Coeficiente | F4: Custo Unitário (R$) | G4: Custo Total (R$) | H4: Total do Serviço (R$)
A5: SF-02379 | B5: =INDEX('Ax9-P2-Serviços'!B:C,MATCH('Ax9-P2-Comp.Serviços'!A5,'Ax9-P2-Serviços'!B:B,0),2) -> Solda exotérmica | D5: =TRIM(INDEX('Ax9-P2-Serviços'!D:D,MATCH('Ax9-P2-Comp.Serviços'!A5,'Ax9-P2-Serviços'!B:B,0),1)) -> un | G5: =IF(ISNUMBER(F5),E5*F5,"") -> 
C7: Eletricista com Encargos Complementares | D7: h | E7: 0.08 | F7: 22.268 | G7: 1.78144 | H7: =SUM(G7:G11) -> 39.0317
C8: Servente com Encargos Complementares | D8: h | E8: 0.08 | F8: 16.3115 | G8: 1.30492
C9: Cartucho de Solda Exotérmica n.º 90 | D9: un | E9: 1 | F9: 24.9755 | G9: 24.9755
C10: Ignex - Palito Ignitor para Solda Exotérmica | D10: un | E10: 1 | F10: 3.572 | G10: 3.572
C11: Molde p/ Solda Tipo "T" até 35mm² | D11: un | E11: 0.04 | F11: 184.946 | G11: 7.39784

Sheet Ax9-P3-Materiais
A1: Manutenção Elétrica - Pregão Eletrônico nº 067/2021
A2: ANEXO 9 - Planilha 3 – Composição de Custos para os Materiais
A4: Subitem | B4: Especificação | C4: Descrição | D4: Unid. | E4: Quantidade Estimada p/ 30 Meses | F4: Custo Unitário (R$) | G4: Custo Direto (R$) | H4: BDI (%) | I4: Preço Unitário c/ BDI (R$) | J4: Preço Total (R$)
E5: (A) | I5: (B) | J5: (C)=(A)*(B)
A6: 3.1 | B6: SF-01423 | C6: Conjunto parafuso, porca e arruelas M5 | D6: un | E6: 5000 | F6: 0.5 | G6: =ROUND(E6*F6,2) -> 2500 | H6: =BDI!$E$17 -> 0.1126 | I6: =ROUND(F6*(1+H6),2) -> 0.56 | J6: =E6*I6 -> 2800
A7: 3.2 | B7: SF-01424 | C7: Conjunto parafuso, porca e arruelas M6 | D7: un | E7: 5000 | F7: 0.62 | G7: =ROUND(E7*F7,2) -> 3100 | H7: =BDI!$E$17 -> 0.1126 | I7: =ROUND(F7*(1+H7),2) -> 0.69 | J7: 3450
A8: 3.3 | B8: SF-01425 | C8: Conjunto parafuso, porca e arruelas M8 | D8: un | E8: 5000 | F8: 1.25 | G8: 6250 | H8: =BDI!$E$17 -> 0.1126 | I8: 1.39 | J8: 6950
A9: 3.4 | B9: SF-01426 | C9: Conjunto parafuso, porca e arruelas M10 | D9: un | E9: 5000 | F9: 3.35 | G9: 16750 | H9: =BDI!$E$17 -> 0.1126 | I9: 3.73 | J9: 18650
A10: 3.5 | B10: SF-01427 | C10: Conjunto parafuso, porca e arruelas M12 | D10: un | E10: 2500 | F10: 2.89 | G10: 7225 | H10: =BDI!$E$17 -> 0.1126 | I10: 3.22 | J10: 8050
A11: 3.6 | B11: SF-01428 | C11: Identificador para botão de emergência | D11: un | E11: 200 | F11: 9.3 | G11: 1860 | H11: =BDI!$E$17 -> 0.1126 | I11: 10.35 | J11: 2070
A12: 3.7 | B12: SF-01429 | C12: Prensa cabos | D12: un | E12: 200 | F12: 9.75 | G12: 1950 | H12: =BDI!$E$17 -> 0.1126 | I12: 10.85 | J12: 2170
A13: 3.8 | B13: SF-01430 | C13: Bloco de distribuição 2 x 7 | D13: un | E13: 100 | F13: 70.5 | G13: 7050 | H13: =BDI!$E$17 -> 0.1126 | I13: 78.44 | J13: 7844
A14: 3.9 | B14: SF-01431 | C14: Bloco de distribuição 2 x 15 | D14: un | E14: 100 | F14: 75.03 | G14: 7503 | H14: =BDI!$E$17 -> 0.1126 | I14: 83.48 | J14: 8348
A15: 3.10 | B15: SF-01432 | C15: Bloco de distribuição 4 x 7 | D15: un | E15: 100 | F15: 146.92 | G15: 14692 | H15: =BDI!$E$17 -> 0.1126 | I15: 163.46 | J15: 16346
A16: 3.11 | B16: SF-01433 | C16: Bloco de distribuição 4 x 15 | D16: un | E16: 100 | F16: 205 | G16: 20500 | H16: =BDI!$E$17 -> 0.1126 | I16: 228.08 | J16: 22808
A17: 3.12 | B17: SF-01434 | C17: Isolador de baixa tensão para barramentos | D17: un | E17: 1000 | F17: 6.83 | G17: 6830 | H17: =BDI!$E$17 -> 0.1126 | I17: 7.6 | J17: 7600
A18: 3.13 | B18: SF-01435 | C18: Trilho DIN 35mm | D18: m | E18: 600 | F18: 16.95 | G18: 10170 | H18: =BDI!$E$17 -> 0.1126 | I18: 18.86 | J18: 11316
A19: 3.14 | B19: SF-01436 | C19: Suporte para trilho DIN | D19: un | E19: 200 | F19: 7.94 | G19: 1588 | H19: =BDI!$E$17 -> 0.1126 | I19: 8.83 | J19: 1766
A20: 3.15 | B20: SF-01437 | C20: Barramento de cobre | D20: cm3 | E20: 50000 | F20: 1.07 | G20: 53500 | H20: =BDI!$E$17 -> 0.1126 | I20: 1.19 | J20: 59500
A21: 3.16 | B21: SF-01438 | C21: Desumidificador para painel | D21: un | E21: 30 | F21: 206.09 | G21: 6182.7 | H21: =BDI!$E$17 -> 0.1126 | I21: 229.3 | J21: 6879
A22: 3.17 | B22: SF-01439 | C22: Conjunto ventilador para painel elétrico 150 mm | D22: un | E22: 40 | F22: 320.29 | G22: 12811.6 | H22: =BDI!$E$17 -> 0.1126 | I22: 356.35 | J22: 14254
A23: 3.18 | B23: SF-01440 | C23: Conjunto ventilador para painel elétrico 200 mm | D23: un | E23: 40 | F23: 564.65 | G23: 22586 | H23: =BDI!$E$17 -> 0.1126 | I23: 628.23 | J23: 25129.2
A24: 3.19 | B24: SF-01441 | C24: Conjunto ventilador para painel elétrico 250 mm | D24: un | E24: 40 | F24: 820.31 | G24: 32812.4 | H24: =BDI!$E$17 -> 0.1126 | I24: 912.68 | J24: 36507.2
A25: 3.20 | B25: SF-01442 | C25: Conjunto ventilador para painel elétrico 325 mm | D25: un | E25: 40 | F25: 1083.85 | G25: 43354 | H25: =BDI!$E$17 -> 0.1126 | I25: 1205.89 | J25: 48235.6
A26: 3.21 | B26: SF-01443 | C26: Porta documentos | D26: un | E26: 100 | F26: 42 | G26: 4200 | H26: =BDI!$E$17 -> 0.1126 | I26: 46.73 | J26: 4673
A27: 3.22 | B27: SF-01444 | C27: Tomada auxiliar | D27: un | E27: 200 | F27: 44.76 | G27: 8952 | H27: =BDI!$E$17 -> 0.1126 | I27: 49.8 | J27: 9960
A28: 3.23 | B28: SF-01445 | C28: Fixador/clip autoadesivo para abraçadeiras de nylon | D28: pct | E28: 200 | F28: 0.78 | G28: 156 | H28: =BDI!$E$17 -> 0.1126 | I28: 0.87 | J28: 174
A29: 3.24 | B29: SF-01446 | C29: Spira-duto 1/8 | D29: m | E29: 500 | F29: 1.75 | G29: 875 | H29: =BDI!$E$17 -> 0.1126 | I29: 1.95 | J29: 975
A30: 3.25 | B30: SF-01447 | C30: Spira-duto 1/4 | D30: m | E30: 500 | F30: 2.2 | G30: 1100 | H30: =BDI!$E$17 -> 0.1126 | I30: 2.45 | J30: 1225
A31: 3.26 | B31: SF-01448 | C31: Spira-duto 1/2 | D31: m | E31: 500 | F31: 4.57 | G31: 2285 | H31: =BDI!$E$17 -> 0.1126 | I31: 5.08 | J31: 2540
A32: 3.27 | B32: SF-01449 | C32: Spira-duto 3/4 | D32: m | E32: 500 | F32: 8.22 | G32: 4110 | H32: =BDI!$E$17 -> 0.1126 | I32: 9.15 | J32: 4575
A33: 3.28 | B33: SF-01450 | C33: Canaleta de quadro 30 mm x 30 mm | D33: m | E33: 500 | F33: 12.38 | G33: 6190 | H33: =BDI!$E$17 -> 0.1126 | I33: 13.77 | J33: 6885
A34: 3.29 | B34: SF-01451 | C34: Canaleta de quadro 30 mm x 50 mm | D34: m | E34: 500 | F34: 16.54 | G34: 8270 | H34: =BDI!$E$17 -> 0.1126 | I34: 18.4 | J34: 9200
A35: 3.30 | B35: SF-01452 | C35: Canaleta de quadro 50 mm x 50 mm | D35: m | E35: 500 | F35: 32.47 | G35: 16235 | H35: =BDI!$E$17 -> 0.1126 | I35: 36.13 | J35: 18065
A36: 3.31 | B36: SF-01453 | C36: Canaleta de quadro 50 mm x 80 mm | D36: m | E36: 500 | F36: 31.43 | G36: 15715 | H36: =BDI!$E$17 -> 0.1126 | I36: 34.97 | J36: 17485
A37: 3.32 | B37: SF-01454 | C37: Canaleta de quadro 80 mm x 50 mm | D37: m | E37: 500 | F37: 26.45 | G37: 13225 | H37: =BDI!$E$17 -> 0.1126 | I37: 29.43 | J37: 14715
A38: 3.33 | B38: SF-01455 | C38: Canaleta de quadro 80 mm x 80 mm | D38: m | E38: 500 | F38: 39.43 | G38: 19715 | H38: =BDI!$E$17 -> 0.1126 | I38: 43.87 | J38: 21935
A39: 3.34 | B39: SF-01456 | C39: Canaleta de quadro 110 mm x 80 mm | D39: m | E39: 500 | F39: 62.99 | G39: 31495 | H39: =BDI!$E$17 -> 0.1126 | I39: 70.08 | J39: 35040
A40: 3.35 | B40: SF-01457 | C40: Borne até 4 mm2 | D40: un | E40: 10000 | F40: 5.77 | G40: 57700 | H40: =BDI!$E$17 -> 0.1126 | I40: 6.42 | J40: 64200
A41: 3.36 | B41: SF-01458 | C41: Borne terra até 4 mm2 | D41: un | E41: 2000 | F41: 7.8 | G41: 15600 | H41: =BDI!$E$17 -> 0.1126 | I41: 8.68 | J41: 17360
A42: 3.37 | B42: SF-01459 | C42: Borne 6 mm2 | D42: un | E42: 2000 | F42: 5.98 | G42: 11960 | H42: =BDI!$E$17 -> 0.1126 | I42: 6.65 | J42: 13300
A43: 3.38 | B43: SF-01460 | C43: Borne terra 6 mm2 | D43: un | E43: 400 | F43: 17.58 | G43: 7032 | H43: =BDI!$E$17 -> 0.1126 | I43: 19.56 | J43: 7824
A44: 3.39 | B44: SF-01461 | C44: Borne 10 mm2 | D44: un | E44: 1500 | F44: 6.61 | G44: 9915 | H44: =BDI!$E$17 -> 0.1126 | I44: 7.35 | J44: 11025
A45: 3.40 | B45: SF-01462 | C45: Borne terra 10 mm2 | D45: un | E45: 300 | F45: 24.88 | G45: 7464 | H45: =BDI!$E$17 -> 0.1126 | I45: 27.68 | J45: 8304
A46: 3.41 | B46: SF-01463 | C46: Borne 16 mm2 | D46: un | E46: 1000 | F46: 9.46 | G46: 9460 | H46: =BDI!$E$17 -> 0.1126 | I46: 10.53 | J46: 10530
A47: 3.42 | B47: SF-01464 | C47: Borne terra 16 mm2 | D47: un | E47: 200 | F47: 36.86 | G47: 7372 | H47: =BDI!$E$17 -> 0.1126 | I47: 41.01 | J47: 8202
A48: 3.43 | B48: SF-01465 | C48: Borne 35 mm2 | D48: un | E48: 1000 | F48: 19.1 | G48: 19100 | H48: =BDI!$E$17 -> 0.1126 | I48: 21.25 | J48: 21250
A49: 3.44 | B49: SF-01466 | C49: Borne terra 35 mm2 | D49: un | E49: 200 | F49: 38.14 | G49: 7628 | H49: =BDI!$E$17 -> 0.1126 | I49: 42.43 | J49: 8486
A50: 3.45 | B50: SF-01467 | C50: Borne duplo | D50: un | E50: 4000 | F50: 9.4 | G50: 37600 | H50: =BDI!$E$17 -> 0.1126 | I50: 10.46 | J50: 41840
A51: 3.46 | B51: SF-01468 | C51: Tampa final para borne | D51: un | E51: 5000 | F51: 1.14 | G51: 5700 | H51: =BDI!$E$17 -> 0.1126 | I51: 1.27 | J51: 6350
A52: 3.47 | B52: SF-01469 | C52: Separador para borne | D52: un | E52: 5000 | F52: 2.25 | G52: 11250 | H52: =BDI!$E$17 -> 0.1126 | I52: 2.5 | J52: 12500
A53: 3.48 | B53: SF-01470 | C53: Ponte para borne | D53: un | E53: 5000 | F53: 10.6 | G53: 53000 | H53: =BDI!$E$17 -> 0.1126 | I53: 11.79 | J53: 58950
A54: 3.49 | B54: SF-01471 | C54: Poste para borne | D54: un | E54: 5000 | F54: 1.68 | G54: 8400 | H54: =BDI!$E$17 -> 0.1126 | I54: 1.87 | J54: 9350
A55: 3.50 | B55: SF-01472 | C55: Borne porta-fusível com LED | D55: un | E55: 3000 | F55: 17.15 | G55: 51450 | H55: =BDI!$E$17 -> 0.1126 | I55: 19.08 | J55: 57240
A56: 3.51 | B56: SF-01473 | C56: Borne porta-fusível sem LED | D56: un | E56: 3000 | F56: 21 | G56: 63000 | H56: =BDI!$E$17 -> 0.1126 | I56: 23.36 | J56: 70080
A57: 3.52 | B57: SF-01474 | C57: Porta identificador para borne | D57: un | E57: 10000 | F57: 5.64 | G57: 56400 | H57: =BDI!$E$17 -> 0.1126 | I57: 6.28 | J57: 62800
A58: 3.53 | B58: SF-01475 | C58: Identificador para borne | D58: un | E58: 10000 | F58: 5.37 | G58: 53700 | H58: =BDI!$E$17 -> 0.1126 | I58: 5.97 | J58: 59700
A59: 3.54 | B59: SF-01476 | C59: Bloco de aferição para TC | D59: un | E59: 100 | F59: 173.97 | G59: 17397 | H59: =BDI!$E$17 -> 0.1126 | I59: 193.56 | J59: 19356
A60: 3.55 | B60: SF-01477 | C60: Bloco de aferição para TP e TC | D60: un | E60: 100 | F60: 381.09 | G60: 38109 | H60: =BDI!$E$17 -> 0.1126 | I60: 424 | J60: 42400
A61: 3.56 | B61: SF-01478 | C61: Barramento monofásico isolado | D61: m | E61: 100 | F61: 52.22 | G61: 5222 | H61: =BDI!$E$17 -> 0.1126 | I61: 58.1 | J61: 5810
A62: 3.57 | B62: SF-01479 | C62: Barramento bifásico isolado | D62: m | E62: 50 | F62: 117.68 | G62: 5884 | H62: =BDI!$E$17 -> 0.1126 | I62: 130.93 | J62: 6546.5
A63: 3.58 | B63: SF-01480 | C63: Barramento trifásico isolado | D63: m | E63: 400 | F63: 171.96 | G63: 68784 | H63: =BDI!$E$17 -> 0.1126 | I63: 191.32 | J63: 76528
A64: 3.59 | B64: SF-01481 | C64: Protetor para barramento isolado | D64: pct | E64: 100 | F64: 5.87 | G64: 587 | H64: =BDI!$E$17 -> 0.1126 | I64: 6.53 | J64: 653
A65: 3.60 | B65: SF-01482 | C65: Conector para barramento isolado | D65: un | E65: 2000 | F65: 14.38 | G65: 28760 | H65: =BDI!$E$17 -> 0.1126 | I65: 16 | J65: 32000
A66: 3.61 | B66: SF-01483 | C66: Obturador para quadro elétrico | D66: un | E66: 2000 | F66: 4.59 | G66: 9180 | H66: =BDI!$E$17 -> 0.1126 | I66: 5.11 | J66: 10220
A67: 3.62 | B67: SF-01484 | C67: Barramento de neutro ou terra | D67: un | E67: 600 | F67: 27.27 | G67: 16362 | H67: =BDI!$E$17 -> 0.1126 | I67: 30.34 | J67: 18204
A68: 3.63 | B68: SF-01485 | C68: Fecho para quadro | D68: un | E68: 300 | F68: 44.35 | G68: 13305 | H68: =BDI!$E$17 -> 0.1126 | I68: 49.34 | J68: 14802
A69: 3.64 | B69: SF-01486 | C69: Placa de montagem 1,5 mm | D69: m2 | E69: 100 | F69: 693.37 | G69: 69337 | H69: =BDI!$E$17 -> 0.1126 | I69: 771.44 | J69: 77144
A70: 3.65 | B70: SF-01487 | C70: Placa de montagem 2 mm | D70: m2 | E70: 100 | F70: 707.08 | G70: 70708 | H70: =BDI!$E$17 -> 0.1126 | I70: 786.7 | J70: =E70*I70 -> 78670
A71: 3.66 | B71: SF-01488 | C71: Chapa de aço galvanizado | D71: kg | E71: 50 | F71: 12.3785 | G71: =ROUND(E71*F71,2) -> 618.93 | H71: =BDI!$E$17 -> 0.1126 | I71: =ROUND(F71*(1+H71),2) -> 13.77 | J71: 688.5
A72: 3.67 | B72: SF-01489 | C72: Policarbonato | D72: dm3 | E72: 1000 | F72: 55.9 | G72: 55900 | H72: =BDI!$E$17 -> 0.1126 | I72: 62.19 | J72: 62190
A73: 3.68 | B73: SF-01490 | C73: Placa de identificação | D73: cm2 | E73: 50000 | F73: 1.03 | G73: 51500 | H73: =BDI!$E$17 -> 0.1126 | I73: 1.15 | J73: 57500
A74: 3.69 | B74: SF-01491 | C74: Cadeado para disjuntores | D74: un | E74: 100 | F74: 49.25 | G74: 4925 | H74: =BDI!$E$17 -> 0.1126 | I74: 54.8 | J74: 5480
A75: 3.70 | B75: SF-01492 | C75: Bloqueio para disjuntores | D75: un | E75: 100 | F75: 36.8 | G75: 3680 | H75: =BDI!$E$17 -> 0.1126 | I75: 40.94 | J75: 4094
A76: 3.71 | B76: SF-01493 | C76: Ventoinha 120mm | D76: un | E76: 100 | F76: 78.48 | G76: 7848 | H76: =BDI!$E$17 -> 0.1126 | I76: 87.32 | J76: 8732
A77: 3.72 | B77: SF-01494 | C77: Perfil de aço | D77: kg | E77: 1500 | F77: 9.139 | G77: 13708.5 | H77: =BDI!$E$17 -> 0.1126 | I77: 10.17 | J77: 15255
A78: 3.73 | B78: SF-01495 | C78: Espuma expansiva corta-fogo | D78: un | E78: 100 | F78: 56.77 | G78: 5677 | H78: =BDI!$E$17 -> 0.1126 | I78: 63.16 | J78: 6316
A79: 3.74 | B79: SF-01496 | C79: Cantoneira | D79: un | E79: 2000 | F79: 3.5 | G79: 7000 | H79: =BDI!$E$17 -> 0.1126 | I79: 3.89 | J79: 7780
A80: 3.75 | B80: SF-01497 | C80: Janela de inspeção termográfica 2 polegadas | D80: un | E80: 20 | F80: 2579.85 | G80: 51597 | H80: =BDI!$E$17 -> 0.1126 | I80: 2870.34 | J80: 57406.8
A81: 3.76 | B81: SF-01498 | C81: Janela de inspeção termográfica 3 polegadas | D81: un | E81: 20 | F81: 3454.43 | G81: 69088.6 | H81: =BDI!$E$17 -> 0.1126 | I81: 3843.4 | J81: 76868
A82: 3.77 | B82: SF-01499 | C82: Janela de inspeção termográfica 4 polegadas | D82: un | E82: 20 | F82: 5203.58 | G82: 104071.6 | H82: =BDI!$E$17 -> 0.1126 | I82: 5789.5 | J82: 115790
A83: 3.78 | B83: SF-01500 | C83: Pino-bola para ponto de aterramento temporário | D83: un | E83: 50 | F83: 89.42 | G83: 4471 | H83: =BDI!$E$17 -> 0.1126 | I83: 99.49 | J83: 4974.5
A84: 3.79 | B84: SF-01501 | C84: Luminária para quadros elétricos | D84: un | E84: 50 | F84: 430.81 | G84: 21540.5 | H84: =BDI!$E$17 -> 0.1126 | I84: 479.32 | J84: 23966
A85: 3.80 | B85: SF-01502 | C85: Canaleta em alumínio 73mm x 25mm | D85: m | E85: 1000 | F85: 115.61 | G85: 115610 | H85: =BDI!$E$17 -> 0.1126 | I85: 128.63 | J85: 128630
A86: 3.81 | B86: SF-01503 | C86: Curva para canaleta em alumínio 73mm x 25mm | D86: un | E86: 400 | F86: 73.26 | G86: 29304 | H86: =BDI!$E$17 -> 0.1126 | I86: 81.51 | J86: 32604
A87: 3.82 | B87: SF-01504 | C87: Porta equipamentos para canaleta de alumínio | D87: un | E87: 2000 | F87: 22.01 | G87: 44020 | H87: =BDI!$E$17 -> 0.1126 | I87: 24.49 | J87: 48980
A88: 3.83 | B88: SF-01505 | C88: Adaptador de eletroduto para canaleta em alumínio 73mm x 25mm | D88: un | E88: 200 | F88: 52.54 | G88: 10508 | H88: =BDI!$E$17 -> 0.1126 | I88: 58.46 | J88: 11692
A89: 3.84 | B89: SF-01506 | C89: Tampa terminal para canaleta em alumínio 73mm x 25mm | D89: un | E89: 500 | F89: 7.64 | G89: 3820 | H89: =BDI!$E$17 -> 0.1126 | I89: 8.5 | J89: 4250
A90: 3.85 | B90: SF-01507 | C90: Derivação tipo X para canaleta em alumínio 73mm x 25mm | D90: un | E90: 50 | F90: 86.07 | G90: 4303.5 | H90: =BDI!$E$17 -> 0.1126 | I90: 95.76 | J90: 4788
A91: 3.86 | B91: SF-01508 | C91: Canaleta em alumínio 53mm x 14mm | D91: m | E91: 500 | F91: 62.97 | G91: 31485 | H91: =BDI!$E$17 -> 0.1126 | I91: 70.06 | J91: 35030
A92: 3.87 | B92: SF-01509 | C92: Curva para canaleta em alumínio 53mm x 14mm | D92: un | E92: 100 | F92: 27.04 | G92: 2704 | H92: =BDI!$E$17 -> 0.1126 | I92: 30.08 | J92: 3008
A93: 3.88 | B93: SF-01510 | C93: Tampa terminal para canaleta em alumínio 53mm x 14mm | D93: un | E93: 100 | F93: 8.19 | G93: 819 | H93: =BDI!$E$17 -> 0.1126 | I93: 9.11 | J93: 911
A94: 3.89 | B94: SF-01511 | C94: Adaptador de porta equipamentos para canaleta em alumínio 53mm x 14mm | D94: un | E94: 200 | F94: 16.45 | G94: 3290 | H94: =BDI!$E$17 -> 0.1126 | I94: 18.3 | J94: 3660
A95: 3.90 | B95: SF-01512 | C95: Canaleta em PVC 20mm x 12 mm | D95: m | E95: 1500 | F95: 5.81 | G95: 8715 | H95: =BDI!$E$17 -> 0.1126 | I95: 6.46 | J95: 9690
A96: 3.91 | B96: SF-01513 | C96: Acessório para canaleta em PVC 20mm x 12 mm | D96: un | E96: 100 | F96: 1.8 | G96: 180 | H96: =BDI!$E$17 -> 0.1126 | I96: 2 | J96: 200
A97: 3.92 | B97: SF-01514 | C97: Caixa de sobrepor para canaleta em PVC 20mm x 12 mm | D97: un | E97: 400 | F97: 14.1 | G97: 5640 | H97: =BDI!$E$17 -> 0.1126 | I97: 15.69 | J97: 6276
A98: 3.93 | B98: SF-01515 | C98: Tomada para canaleta em PVC 20mm x 12 mm | D98: un | E98: 100 | F98: 14.49 | G98: 1449 | H98: =BDI!$E$17 -> 0.1126 | I98: 16.12 | J98: 1612
A99: 3.94 | B99: SF-01516 | C99: Interruptor para canaleta em PVC 20mm x 12 mm | D99: un | E99: 50 | F99: 14.01 | G99: 700.5 | H99: =BDI!$E$17 -> 0.1126 | I99: 15.59 | J99: 779.5
A100: 3.95 | B100: SF-01517 | C100: Pulsador para canaleta em PVC 20mm x 12 mm | D100: un | E100: 10 | F100: 30.67 | G100: 306.7 | H100: =BDI!$E$17 -> 0.1126 | I100: 34.12 | J100: 341.2
A101: 3.96 | B101: SF-01518 | C101: Módulo cego para canaleta em PVC 20mm x 12 mm | D101: un | E101: 100 | F101: 18.59 | G101: 1859 | H101: =BDI!$E$17 -> 0.1126 | I101: 20.68 | J101: 2068
A102: 3.97 | B102: SF-01519 | C102: Chave seletora de 2 posições | D102: un | E102: 500 | F102: 16.65 | G102: 8325 | H102: =BDI!$E$17 -> 0.1126 | I102: 18.52 | J102: 9260
A103: 3.98 | B103: SF-01520 | C103: Chave seletora de 3 posições | D103: un | E103: 500 | F103: 22.31 | G103: 11155 | H103: =BDI!$E$17 -> 0.1126 | I103: 24.82 | J103: 12410
A104: 3.99 | B104: SF-01521 | C104: Botão de emergência tipo cogumelo | D104: un | E104: 300 | F104: 19.66 | G104: 5898 | H104: =BDI!$E$17 -> 0.1126 | I104: 21.87 | J104: 6561
A105: 3.100 | B105: SF-01522 | C105: Botão tipo pulsador | D105: un | E105: 1000 | F105: 13.08 | G105: 13080 | H105: =BDI!$E$17 -> 0.1126 | I105: 14.55 | J105: 14550
A106: 3.101 | B106: SF-01523 | C106: Botão tipo pulsador iluminado | D106: un | E106: 100 | F106: 35.93 | G106: 3593 | H106: =BDI!$E$17 -> 0.1126 | I106: 39.98 | J106: 3998
A107: 3.102 | B107: SF-01524 | C107: Bloco de contato para chaves e botões | D107: un | E107: 200 | F107: 6.27 | G107: 1254 | H107: =BDI!$E$17 -> 0.1126 | I107: 6.98 | J107: 1396
A108: 3.103 | B108: SF-01525 | C108: Chave seletora de 2 posições iluminada | D108: un | E108: 100 | F108: 53.31 | G108: 5331 | H108: =BDI!$E$17 -> 0.1126 | I108: 59.31 | J108: 5931
A109: 3.104 | B109: SF-01526 | C109: Chave seletora de 3 posições iluminada | D109: un | E109: 100 | F109: 56.9 | G109: 5690 | H109: =BDI!$E$17 -> 0.1126 | I109: 63.31 | J109: 6331
A110: 3.105 | B110: SF-01527 | C110: Botão duplo | D110: un | E110: 30 | F110: 103.9 | G110: 3117 | H110: =BDI!$E$17 -> 0.1126 | I110: 115.6 | J110: 3468
A111: 3.106 | B111: SF-01528 | C111: Sinaleiro LED | D111: un | E111: 1500 | F111: 10.36 | G111: 15540 | H111: =BDI!$E$17 -> 0.1126 | I111: 11.53 | J111: 17295
A112: 3.107 | B112: SF-01529 | C112: Sinalizador sonoro luminoso | D112: un | E112: 200 | F112: 29.96 | G112: 5992 | H112: =BDI!$E$17 -> 0.1126 | I112: 33.33 | J112: 6666
A113: 3.108 | B113: SF-01530 | C113: Sinalizador sonoro | D113: un | E113: 200 | F113: 30.64 | G113: 6128 | H113: =BDI!$E$17 -> 0.1126 | I113: 34.09 | J113: 6818
A114: 3.109 | B114: SF-01531 | C114: Sirene | D114: un | E114: 50 | F114: 215.69 | G114: 10784.5 | H114: =BDI!$E$17 -> 0.1126 | I114: 239.98 | J114: 11999
A115: 3.110 | B115: SF-01532 | C115: Chave de partida direta | D115: un | E115: 50 | F115: 154 | G115: 7700 | H115: =BDI!$E$17 -> 0.1126 | I115: 171.34 | J115: 8567
A116: 3.111 | B116: SF-01533 | C116: Distribuidor Interno Ótico Industrial | D116: un | E116: 50 | F116: 241.2 | G116: 12060 | H116: =BDI!$E$17 -> 0.1126 | I116: 268.36 | J116: 13418
A117: 3.112 | B117: SF-01534 | C117: Patch Panel Ethernet Industrial | D117: un | E117: 20 | F117: 1105.43 | G117: 22108.6 | H117: =BDI!$E$17 -> 0.1126 | I117: 1229.9 | J117: 24598
A118: 3.113 | B118: SF-01535 | C118: Conector RJ45 Fêmea Blindado | D118: un | E118: 200 | F118: 49.32 | G118: 9864 | H118: =BDI!$E$17 -> 0.1126 | I118: 54.87 | J118: 10974
A119: 3.114 | B119: SF-01536 | C119: Conector RJ45 Macho Blindado | D119: un | E119: 200 | F119: 13.14 | G119: 2628 | H119: =BDI!$E$17 -> 0.1126 | I119: 14.62 | J119: 2924
A120: 3.115 | B120: SF-01537 | C120: Cabo Ethernet Blindado | D120: m | E120: 3000 | F120: 13.11 | G120: 39330 | H120: =BDI!$E$17 -> 0.1126 | I120: 14.59 | J120: 43770
A121: 3.116 | B121: SF-01538 | C121: Switch ethernet industrial | D121: un | E121: 20 | F121: 2964.02 | G121: 59280.4 | H121: =BDI!$E$17 -> 0.1126 | I121: 3297.77 | J121: 65955.4
A122: 3.117 | B122: SF-01539 | C122: Gateway Modbus Ethernet/RS485 | D122: un | E122: 20 | F122: 4673.24 | G122: 93464.8 | H122: =BDI!$E$17 -> 0.1126 | I122: 5199.45 | J122: 103989
A123: 3.118 | B123: SF-01540 | C123: Condulete de alumínio de 3/4’’ | D123: un | E123: 4000 | F123: 6.137 | G123: 24548 | H123: =BDI!$E$17 -> 0.1126 | I123: 6.83 | J123: 27320
A124: 3.119 | B124: SF-01541 | C124: Condulete de alumínio de 1’’ | D124: un | E124: 4000 | F124: 10.317 | G124: 41268 | H124: =BDI!$E$17 -> 0.1126 | I124: 11.48 | J124: 45920
A125: 3.120 | B125: SF-01542 | C125: Condulete de alumínio de 1.1/4’’ | D125: un | E125: 1000 | F125: 12.6445 | G125: 12644.5 | H125: =BDI!$E$17 -> 0.1126 | I125: 14.07 | J125: 14070
A126: 3.121 | B126: SF-01543 | C126: Condulete de alumínio de 1.1/2’’ | D126: un | E126: 1000 | F126: 16.8055 | G126: 16805.5 | H126: =BDI!$E$17 -> 0.1126 | I126: 18.7 | J126: 18700
A127: 3.122 | B127: SF-01544 | C127: Condulete de alumínio de 2’’ | D127: un | E127: 500 | F127: 24.6525 | G127: 12326.25 | H127: =BDI!$E$17 -> 0.1126 | I127: 27.43 | J127: 13715
A128: 3.123 | B128: SF-01545 | C128: Condulete de alumínio de 2.1/2’’ | D128: un | E128: 500 | F128: 140.12 | G128: 70060 | H128: =BDI!$E$17 -> 0.1126 | I128: 155.9 | J128: 77950
A129: 3.124 | B129: SF-01546 | C129: Condulete de alumínio de 3’’ | D129: un | E129: 250 | F129: 68.4665 | G129: 17116.63 | H129: =BDI!$E$17 -> 0.1126 | I129: 76.18 | J129: 19045
A130: 3.125 | B130: SF-01547 | C130: Condulete de alumínio de 4’’ | D130: un | E130: 200 | F130: 125.6755 | G130: 25135.1 | H130: =BDI!$E$17 -> 0.1126 | I130: 139.83 | J130: 27966
A131: 3.126 | B131: SF-01548 | C131: Tampa para condulete de alumínio de 3/4’’ | D131: un | E131: 5000 | F131: 2.67 | G131: 13350 | H131: =BDI!$E$17 -> 0.1126 | I131: 2.97 | J131: 14850
A132: 3.127 | B132: SF-01549 | C132: Tampa para condulete de alumínio de 1’’ | D132: un | E132: 5000 | F132: 4.09 | G132: 20450 | H132: =BDI!$E$17 -> 0.1126 | I132: 4.55 | J132: 22750
A133: 3.128 | B133: SF-01550 | C133: Interruptor para condulete | D133: un | E133: 1000 | F133: 13.95 | G133: 13950 | H133: =BDI!$E$17 -> 0.1126 | I133: 15.52 | J133: 15520
A134: 3.129 | B134: SF-01551 | C134: Interruptor duplo para condulete | D134: un | E134: 500 | F134: 18.8 | G134: 9400 | H134: =BDI!$E$17 -> 0.1126 | I134: 20.92 | J134: =E134*I134 -> 10460
A135: 3.130 | B135: SF-01552 | C135: Tomada para condulete de 10 A | D135: un | E135: 4000 | F135: 14.65 | G135: =ROUND(E135*F135,2) -> 58600 | H135: =BDI!$E$17 -> 0.1126 | I135: =ROUND(F135*(1+H135),2) -> 16.3 | J135: 65200
A136: 3.131 | B136: SF-01553 | C136: Tomada para condulete de 20 A | D136: un | E136: 1000 | F136: 18.29 | G136: 18290 | H136: =BDI!$E$17 -> 0.1126 | I136: 20.35 | J136: 20350
A137: 3.132 | B137: SF-01554 | C137: Tomada dupla para condulete | D137: un | E137: 2000 | F137: 14.7 | G137: 29400 | H137: =BDI!$E$17 -> 0.1126 | I137: 16.36 | J137: 32720
A138: 3.133 | B138: SF-01555 | C138: Tomada e interruptor para condulete | D138: un | E138: 500 | F138: 26.33 | G138: 13165 | H138: =BDI!$E$17 -> 0.1126 | I138: 29.29 | J138: 14645
A139: 3.134 | B139: SF-01556 | C139: Kit de vedaçao para condulete de alumínio de 3/4’’ | D139: un | E139: 100 | F139: 10.73 | G139: 1073 | H139: =BDI!$E$17 -> 0.1126 | I139: 11.94 | J139: 1194
A140: 3.135 | B140: SF-01557 | C140: Kit de vedaçao para condulete de alumínio de 1’’ | D140: un | E140: 200 | F140: 11.25 | G140: 2250 | H140: =BDI!$E$17 -> 0.1126 | I140: 12.52 | J140: 2504
A141: 3.136 | B141: SF-01558 | C141: Kit de vedaçao para condulete de alumínio de 1.1/4’’ | D141: un | E141: 50 | F141: 26.96 | G141: 1348 | H141: =BDI!$E$17 -> 0.1126 | I141: 30 | J141: 1500
A142: 3.137 | B142: SF-01559 | C142: Kit de vedaçao para condulete de alumínio de 1.1/2’’ | D142: un | E142: 50 | F142: 40.97 | G142: 2048.5 | H142: =BDI!$E$17 -> 0.1126 | I142: 45.58 | J142: 2279
A143: 3.138 | B143: SF-01560 | C143: Kit de vedaçao para condulete de alumínio de 2’’ | D143: un | E143: 50 | F143: 30.24 | G143: 1512 | H143: =BDI!$E$17 -> 0.1126 | I143: 33.65 | J143: 1682.5
A144: 3.139 | B144: SF-01561 | C144: Tampa para condulete de PVC | D144: un | E144: 5000 | F144: 2.8785 | G144: 14392.5 | H144: =BDI!$E$17 -> 0.1126 | I144: 3.2 | J144: 16000
A145: 3.140 | B145: SF-01562 | C145: Conector para condulete de PVC | D145: un | E145: 8000 | F145: 1.48 | G145: 11840 | H145: =BDI!$E$17 -> 0.1126 | I145: 1.65 | J145: 13200
A146: 3.141 | B146: SF-01563 | C146: Terminal de compressão 25 mm2 | D146: un | E146: 10000 | F146: 2.166 | G146: 21660 | H146: =BDI!$E$17 -> 0.1126 | I146: 2.41 | J146: 24100
A147: 3.142 | B147: SF-01564 | C147: Terminal de compressão 35 mm2 | D147: un | E147: 2000 | F147: 2.4415 | G147: 4883 | H147: =BDI!$E$17 -> 0.1126 | I147: 2.72 | J147: 5440
A148: 3.143 | B148: SF-01565 | C148: Terminal de compressão 50 mm2 | D148: un | E148: 2000 | F148: 4.2465 | G148: 8493 | H148: =BDI!$E$17 -> 0.1126 | I148: 4.72 | J148: 9440
A149: 3.144 | B149: SF-01566 | C149: Terminal de compressão 70 mm2 | D149: un | E149: 1000 | F149: 5.2915 | G149: 5291.5 | H149: =BDI!$E$17 -> 0.1126 | I149: 5.89 | J149: 5890
A150: 3.145 | B150: SF-01567 | C150: Terminal de compressão 95 mm2 | D150: un | E150: 1000 | F150: 6.517 | G150: 6517 | H150: =BDI!$E$17 -> 0.1126 | I150: 7.25 | J150: 7250
A151: 3.146 | B151: SF-01568 | C151: Terminal de compressão 120 mm2 | D151: un | E151: 1000 | F151: 9.1675 | G151: 9167.5 | H151: =BDI!$E$17 -> 0.1126 | I151: 10.2 | J151: 10200
A152: 3.147 | B152: SF-01569 | C152: Terminal de compressão 150 mm2 | D152: un | E152: 600 | F152: 20.6245 | G152: 12374.7 | H152: =BDI!$E$17 -> 0.1126 | I152: 22.95 | J152: 13770
A153: 3.148 | B153: SF-01570 | C153: Terminal de compressão 185 mm2 | D153: un | E153: 1000 | F153: 22.5435 | G153: 22543.5 | H153: =BDI!$E$17 -> 0.1126 | I153: 25.08 | J153: 25080
A154: 3.149 | B154: SF-01571 | C154: Terminal de compressão 240 mm2 | D154: un | E154: 600 | F154: 29.7445 | G154: 17846.7 | H154: =BDI!$E$17 -> 0.1126 | I154: 33.09 | J154: 19854
A155: 3.150 | B155: SF-01572 | C155: Terminal de compressão 300 mm2 | D155: un | E155: 300 | F155: 43.282 | G155: 12984.6 | H155: =BDI!$E$17 -> 0.1126 | I155: 48.16 | J155: 14448
A156: 3.151 | B156: SF-01573 | C156: Luva de compressão 25 mm2 | D156: un | E156: 500 | F156: 3.35 | G156: 1675 | H156: =BDI!$E$17 -> 0.1126 | I156: 3.73 | J156: 1865
A157: 3.152 | B157: SF-01574 | C157: Luva de compressão 35 mm2 | D157: un | E157: 500 | F157: 4.8 | G157: 2400 | H157: =BDI!$E$17 -> 0.1126 | I157: 5.34 | J157: 2670
A158: 3.153 | B158: SF-01575 | C158: Luva de compressão 50 mm2 | D158: un | E158: 500 | F158: 8.16 | G158: 4080 | H158: =BDI!$E$17 -> 0.1126 | I158: 9.08 | J158: 4540
A159: 3.154 | B159: SF-01576 | C159: Luva de compressão 70 mm2 | D159: un | E159: 300 | F159: 10.98 | G159: 3294 | H159: =BDI!$E$17 -> 0.1126 | I159: 12.22 | J159: 3666
A160: 3.155 | B160: SF-01577 | C160: Luva de compressão 95 mm2 | D160: un | E160: 300 | F160: 14.54 | G160: 4362 | H160: =BDI!$E$17 -> 0.1126 | I160: 16.18 | J160: 4854
A161: 3.156 | B161: SF-01578 | C161: Luva de compressão 120 mm2 | D161: un | E161: 300 | F161: 15.73 | G161: 4719 | H161: =BDI!$E$17 -> 0.1126 | I161: 17.5 | J161: 5250
A162: 3.157 | B162: SF-01579 | C162: Luva de compressão 150 mm2 | D162: un | E162: 200 | F162: 16.26 | G162: 3252 | H162: =BDI!$E$17 -> 0.1126 | I162: 18.09 | J162: 3618
A163: 3.158 | B163: SF-01580 | C163: Luva de compressão 185 mm2 | D163: un | E163: 200 | F163: 23.32 | G163: 4664 | H163: =BDI!$E$17 -> 0.1126 | I163: 25.95 | J163: 5190
A164: 3.159 | B164: SF-01581 | C164: Luva de compressão 240 mm2 | D164: un | E164: 200 | F164: 39.6 | G164: 7920 | H164: =BDI!$E$17 -> 0.1126 | I164: 44.06 | J164: 8812
A165: 3.160 | B165: SF-01582 | C165: Luva de compressão 300 mm2 | D165: un | E165: 200 | F165: 44.07 | G165: 8814 | H165: =BDI!$E$17 -> 0.1126 | I165: 49.03 | J165: 9806
A166: 3.161 | B166: SF-01583 | C166: Condutor 1,0 mm2 | D166: m | E166: 5000 | F166: 1.1 | G166: 5500 | H166: =BDI!$E$17 -> 0.1126 | I166: 1.22 | J166: 6100
A167: 3.162 | B167: SF-01584 | C167: Condutor 1,5 mm2 | D167: m | E167: 10000 | F167: 1.7 | G167: 17000 | H167: =BDI!$E$17 -> 0.1126 | I167: 1.89 | J167: 18900
A168: 3.163 | B168: SF-01585 | C168: Condutor 2,5 mm2 | D168: m | E168: 100000 | F168: 2.76 | G168: 276000 | H168: =BDI!$E$17 -> 0.1126 | I168: 3.07 | J168: 307000
A169: 3.164 | B169: SF-01586 | C169: Condutor 4 mm2 | D169: m | E169: 50000 | F169: 4.43 | G169: 221500 | H169: =BDI!$E$17 -> 0.1126 | I169: 4.93 | J169: 246500
A170: 3.165 | B170: SF-01587 | C170: Condutor 6 mm2 | D170: m | E170: 20000 | F170: 6.05 | G170: 121000 | H170: =BDI!$E$17 -> 0.1126 | I170: 6.73 | J170: 134600
A171: 3.166 | B171: SF-01588 | C171: Condutor 10 mm2 | D171: m | E171: 15000 | F171: 11.11 | G171: 166650 | H171: =BDI!$E$17 -> 0.1126 | I171: 12.36 | J171: 185400
A172: 3.167 | B172: SF-01589 | C172: Condutor 16 mm2 | D172: m | E172: 15000 | F172: 17.46 | G172: 261900 | H172: =BDI!$E$17 -> 0.1126 | I172: 19.43 | J172: 291450
A173: 3.168 | B173: SF-01590 | C173: Condutor 25 mm2 | D173: m | E173: 10000 | F173: 23.7 | G173: 237000 | H173: =BDI!$E$17 -> 0.1126 | I173: 26.37 | J173: 263700
A174: 3.169 | B174: SF-01591 | C174: Condutor 35 mm2 | D174: m | E174: 10000 | F174: 35.3 | G174: 353000 | H174: =BDI!$E$17 -> 0.1126 | I174: 39.27 | J174: 392700
A175: 3.170 | B175: SF-01592 | C175: Condutor 50 mm2 | D175: m | E175: 10000 | F175: 48.07 | G175: 480700 | H175: =BDI!$E$17 -> 0.1126 | I175: 53.48 | J175: 534800
A176: 3.171 | B176: SF-01593 | C176: Condutor 70 mm2 | D176: m | E176: 8000 | F176: 75.09 | G176: 600720 | H176: =BDI!$E$17 -> 0.1126 | I176: 83.55 | J176: 668400
A177: 3.172 | B177: SF-01594 | C177: Condutor 95 mm2 | D177: m | E177: 8000 | F177: 98.65 | G177: 789200 | H177: =BDI!$E$17 -> 0.1126 | I177: 109.76 | J177: 878080
A178: 3.173 | B178: SF-01595 | C178: Condutor 120 mm2 | D178: m | E178: 8000 | F178: 113.19 | G178: 905520 | H178: =BDI!$E$17 -> 0.1126 | I178: 125.94 | J178: 1007520
A179: 3.174 | B179: SF-01596 | C179: Condutor 150 mm2 | D179: m | E179: 5000 | F179: 127.36 | G179: 636800 | H179: =BDI!$E$17 -> 0.1126 | I179: 141.7 | J179: 708500
A180: 3.175 | B180: SF-01597 | C180: Condutor 185 mm2 | D180: m | E180: 5000 | F180: 190.41 | G180: 952050 | H180: =BDI!$E$17 -> 0.1126 | I180: 211.85 | J180: 1059250
A181: 3.176 | B181: SF-01598 | C181: Condutor 240 mm2 | D181: m | E181: 5000 | F181: 238.2 | G181: 1191000 | H181: =BDI!$E$17 -> 0.1126 | I181: 265.02 | J181: 1325100
A182: 3.177 | B182: SF-01599 | C182: Cobre nu 16 mm2 | D182: m | E182: 1000 | F182: 12.578 | G182: 12578 | H182: =BDI!$E$17 -> 0.1126 | I182: 13.99 | J182: 13990
A183: 3.178 | B183: SF-01600 | C183: Cobre nu 25 mm2 | D183: m | E183: 1000 | F183: 19.418 | G183: 19418 | H183: =BDI!$E$17 -> 0.1126 | I183: 21.6 | J183: 21600
A184: 3.179 | B184: SF-01601 | C184: Cobre nu 35 mm2 | D184: m | E184: 1000 | F184: 26.8375 | G184: 26837.5 | H184: =BDI!$E$17 -> 0.1126 | I184: 29.86 | J184: 29860
A185: 3.180 | B185: SF-01602 | C185: Cobre nu 50 mm2 | D185: m | E185: 5000 | F185: 37.373 | G185: 186865 | H185: =BDI!$E$17 -> 0.1126 | I185: 41.58 | J185: 207900
A186: 3.181 | B186: SF-01603 | C186: Cobre nu 70 mm2 | D186: m | E186: 2000 | F186: 52.6585 | G186: 105317 | H186: =BDI!$E$17 -> 0.1126 | I186: 58.59 | J186: 117180
A187: 3.182 | B187: SF-01604 | C187: Cabo 3x1,5 mm2 | D187: m | E187: 5000 | F187: 8.42 | G187: 42100 | H187: =BDI!$E$17 -> 0.1126 | I187: 9.37 | J187: 46850
A188: 3.183 | B188: SF-01605 | C188: Cabo 3x2,5 mm2 | D188: m | E188: 10000 | F188: 13.89 | G188: 138900 | H188: =BDI!$E$17 -> 0.1126 | I188: 15.45 | J188: 154500
A189: 3.184 | B189: SF-01606 | C189: Cabo 3x4 mm2 | D189: m | E189: 5000 | F189: 18.53 | G189: 92650 | H189: =BDI!$E$17 -> 0.1126 | I189: 20.62 | J189: 103100
A190: 3.185 | B190: SF-01607 | C190: Cabo 3x6 mm2 | D190: m | E190: 1000 | F190: 30.66 | G190: 30660 | H190: =BDI!$E$17 -> 0.1126 | I190: 34.11 | J190: 34110
A191: 3.186 | B191: SF-01608 | C191: Cabo PP 2x1 mm2 | D191: m | E191: 3000 | F191: 3.72 | G191: 11160 | H191: =BDI!$E$17 -> 0.1126 | I191: 4.14 | J191: 12420
A192: 3.187 | B192: SF-01609 | C192: Cabo PP 2x1,5 mm2 | D192: m | E192: 3000 | F192: 4.21 | G192: 12630 | H192: =BDI!$E$17 -> 0.1126 | I192: 4.68 | J192: 14040
A193: 3.188 | B193: SF-01610 | C193: Cabo PP 2x2,5 mm2 | D193: m | E193: 1000 | F193: 6.3 | G193: 6300 | H193: =BDI!$E$17 -> 0.1126 | I193: 7.01 | J193: 7010
A194: 3.189 | B194: SF-01611 | C194: Cabo PP 3x1 mm2 | D194: m | E194: 2500 | F194: 4.48 | G194: 11200 | H194: =BDI!$E$17 -> 0.1126 | I194: 4.98 | J194: 12450
A195: 3.190 | B195: SF-01612 | C195: Cabo PP 3x1,5 mm2 | D195: m | E195: 6000 | F195: 6.19 | G195: 37140 | H195: =BDI!$E$17 -> 0.1126 | I195: 6.89 | J195: 41340
A196: 3.191 | B196: SF-01613 | C196: Cabo PP 3x2,5 mm2 | D196: m | E196: 5000 | F196: 9.34 | G196: 46700 | H196: =BDI!$E$17 -> 0.1126 | I196: 10.39 | J196: 51950
A197: 3.192 | B197: SF-01614 | C197: Cabo Blindado 2x0,75mm2 | D197: m | E197: 200 | F197: 4.41 | G197: 882 | H197: =BDI!$E$17 -> 0.1126 | I197: 4.91 | J197: 982
A198: 3.193 | B198: SF-01615 | C198: Cabo Blindado 2x1mm2 | D198: m | E198: 200 | F198: 4.71 | G198: 942 | H198: =BDI!$E$17 -> 0.1126 | I198: 5.24 | J198: =E198*I198 -> 1048
A199: 3.194 | B199: SF-01616 | C199: Cabo Blindado 2x1,5mm2 | D199: m | E199: 200 | F199: 6.61 | G199: =ROUND(E199*F199,2) -> 1322 | H199: =BDI!$E$17 -> 0.1126 | I199: =ROUND(F199*(1+H199),2) -> 7.35 | J199: 1470
A200: 3.195 | B200: SF-01617 | C200: Cabo Blindado 2x2,5mm2 | D200: m | E200: 200 | F200: 6.8 | G200: 1360 | H200: =BDI!$E$17 -> 0.1126 | I200: 7.57 | J200: 1514
A201: 3.196 | B201: SF-01620 | C201: Cabo Blindado 3x1,50mm2 | D201: m | E201: 200 | F201: 9.85 | G201: 1970 | H201: =BDI!$E$17 -> 0.1126 | I201: 10.96 | J201: 2192
... 722 more rows

Sheet Ax9-P4-Ferramental
A1: Manutenção Elétrica - Pregão Eletrônico nº 067/2021
A2: ANEXO 9 - Planilha 4 – Depreciação de Ferramental
A4: Subitem | B4: Especificação | C4: Descrição | D4: Unidade | E4: Quant. Total | F4: Vida Útil (anos) | G4: Valor Unitário de Aquisição (R$) | H4: Valor Total de Aquisição (R$) | I4: Valor Mensal de Depreciação (R$) | J4: Valor Total Depreciação em 30 meses (R$)
E5: (A) | F5: (B) | G5: (C) | H5: (D)=(A)*(C) | I5: (E)=(D)/(12*B) | J5: (F)=30*(E)
A6: 4.1 | B6: SF-02380 | C6: Chave de abertura de painéis | D6: un | E6: 90 | F6: 5 | G6: 250 | H6: =E6*G6 -> 22500 | I6: =ROUND(H6/(12*F6),2) -> 375 | J6: =I6*30 -> 11250
A7: 4.2 | B7: SF-02381 | C7: Caixa de ferramentas 40 cm | D7: un | E7: 70 | F7: 5 | G7: 150.3 | H7: 10521 | I7: 175.35 | J7: =I7*30 -> 5260.5
A8: 4.3 | B8: SF-02382 | C8: Caixa de ferramentas 50 cm | D8: un | E8: 50 | F8: 5 | G8: 272.89 | H8: 13644.5 | I8: 227.41 | J8: 6822.3
A9: 4.4 | B9: SF-02383 | C9: Carrinho de ferramentas | D9: un | E9: 11 | F9: 5 | G9: 2725 | H9: 29975 | I9: 499.58 | J9: 14987.4
A10: 4.5 | B10: SF-02384 | C10: Transpalete manual | D10: un | E10: 2 | F10: 5 | G10: 1819.99 | H10: 3639.98 | I10: 60.67 | J10: 1820.1
A11: 4.6 | B11: SF-02385 | C11: Carrinho plataforma | D11: un | E11: 2 | F11: 5 | G11: 1987.71 | H11: 3975.42 | I11: 66.26 | J11: 1987.8
A12: 4.7 | B12: SF-02386 | C12: Mesa hidráulica pantográfica | D12: un | E12: 2 | F12: 5 | G12: 3630.54 | H12: 7261.08 | I12: 121.02 | J12: 3630.6
A13: 4.8 | B13: SF-02387 | C13: Lanterna | D13: un | E13: 91 | F13: 10 | G13: 118.09 | H13: 10746.19 | I13: 89.55 | J13: 2686.5
A14: 4.9 | B14: SF-02388 | C14: Cavalete de sinalização de manutenção | D14: un | E14: 25 | F14: 5 | G14: 33.9 | H14: 847.5 | I14: 14.13 | J14: 423.9
A15: 4.10 | B15: SF-02389 | C15: Cone de sinalização | D15: un | E15: 25 | F15: 5 | G15: 44.7925 | H15: 1119.8125 | I15: 18.66 | J15: 559.8
A16: 4.11 | B16: SF-02390 | C16: Detector de tensão sem contato de baixa tensão | D16: un | E16: 105 | F16: 10 | G16: 139 | H16: 14595 | I16: 121.63 | J16: 3648.9
A17: 4.12 | B17: SF-02391 | C17: Detector de tensão sem contato de média tensão | D17: un | E17: 2 | F17: 10 | G17: 1864.16 | H17: 3728.32 | I17: 31.07 | J17: 932.1
A18: 4.13 | B18: SF-02392 | C18: Conjunto de aterramento temporário para baixa tensão | D18: un | E18: 5 | F18: 5 | G18: 1270 | H18: 6350 | I18: 105.83 | J18: 3174.9
A19: 4.14 | B19: SF-02393 | C19: Conjunto de aterramento temporário para média tensão | D19: un | E19: 2 | F19: 5 | G19: 1999 | H19: 3998 | I19: 66.63 | J19: 1998.9
A20: 4.15 | B20: SF-02394 | C20: Grampo de aterramento concha-bola | D20: un | E20: 1 | F20: 5 | G20: 400.5 | H20: 400.5 | I20: 6.68 | J20: 200.4
A21: 4.16 | B21: SF-02395 | C21: Lençol isolante classe 4 | D21: un | E21: 5 | F21: 5 | G21: 705 | H21: 3525 | I21: 58.75 | J21: 1762.5
A22: 4.17 | B22: SF-02396 | C22: Bastão de resgate (ferramental) | D22: un | E22: 3 | F22: 5 | G22: 1250 | H22: 3750 | I22: 62.5 | J22: 1875
A23: 4.18 | B23: SF-02397 | C23: Vara de manobra | D23: un | E23: 1 | F23: 5 | G23: 1300 | H23: 1300 | I23: 21.67 | J23: 650.1
A24: 4.19 | B24: SF-02398 | C24: Cadeado para disjuntores (ferramental) | D24: un | E24: 150 | F24: 5 | G24: 42.9 | H24: 6435 | I24: 107.25 | J24: 3217.5
A25: 4.20 | B25: SF-02399 | C25: Bloqueio para disjuntores (ferramental) | D25: un | E25: 150 | F25: 5 | G25: 54 | H25: 8100 | I25: 135 | J25: 4050
A26: 4.21 | B26: SF-02400 | C26: Etiqueta de bloqueio | D26: un | E26: 600 | F26: 5 | G26: 9.83 | H26: 5898 | I26: 98.3 | J26: 2949
A27: 4.22 | B27: SF-02401 | C27: Inflador de luvas | D27: un | E27: 1 | F27: 5 | G27: 1680 | H27: 1680 | I27: 28 | J27: 840
A28: 4.23 | B28: SF-02402 | C28: Protetor de cabos | D28: un | E28: 30 | F28: 5 | G28: 342 | H28: 10260 | I28: 171 | J28: 5130
A29: 4.24 | B29: SF-02403 | C29: Escada duplo acesso 4 degraus | D29: un | E29: 15 | F29: 5 | G29: 515.73 | H29: 7735.95 | I29: 128.93 | J29: 3867.9
A30: 4.25 | B30: SF-00738 | C30: Escada duplo acesso 6 degraus | D30: un | E30: 15 | F30: 5 | G30: 960 | H30: 14400 | I30: 240 | J30: 7200
A31: 4.26 | B31: SF-02404 | C31: Escada extensível 19 degraus | D31: un | E31: 3 | F31: 5 | G31: 860.62 | H31: 2581.86 | I31: 43.03 | J31: 1290.9
A32: 4.27 | B32: SF-02405 | C32: Andaime tubular 1 m por 1 m e 6 m de altura | D32: un | E32: 1 | F32: 5 | G32: 9126.21 | H32: 9126.21 | I32: 152.1 | J32: 4563
A33: 4.28 | B33: SF-02406 | C33: Andaime tubular 1,5 m por 1 m e 6 m de altura | D33: un | E33: 1 | F33: 5 | G33: 9412.77 | H33: 9412.77 | I33: 156.88 | J33: 4706.4
A34: 4.29 | B34: SF-02407 | C34: Plataforma de trabalho aéreo | D34: un | E34: 1 | F34: 10 | G34: 77239.98 | H34: 77239.98 | I34: 643.67 | J34: 19310.1
A35: 4.30 | B35: SF-00831 | C35: Cinto de segurança tipo paraquedista | D35: un | E35: 5 | F35: 5 | G35: 300.33 | H35: 1501.65 | I35: 25.03 | J35: 750.9
A36: 4.31 | B36: SF-00840 | C36: Talabarte em Y | D36: un | E36: 5 | F36: 5 | G36: 163.9035 | H36: 819.5175 | I36: 13.66 | J36: 409.8
A37: 4.32 | B37: SF-00841 | C37: Trava-quedas deslizante para corda | D37: un | E37: 5 | F37: 5 | G37: 143.9915 | H37: 719.9575 | I37: 12 | J37: 360
A38: 4.33 | B38: SF-00842 | C38: Trava-quedas deslizante para cabo de aço | D38: un | E38: 5 | F38: 5 | G38: 274 | H38: 1370 | I38: 22.83 | J38: 684.9
A39: 4.34 | B39: SF-00839 | C39: Talabarte de posicionamento | D39: un | E39: 5 | F39: 5 | G39: 193.32 | H39: 966.6 | I39: 16.11 | J39: 483.3
A40: 4.35 | B40: SF-02408 | C40: Talabarte simples | D40: un | E40: 5 | F40: 5 | G40: 104.5 | H40: 522.5 | I40: 8.71 | J40: 261.3
A41: 4.36 | B41: SF-02409 | C41: Tripé para trabalho em altura e espaço confinado | D41: un | E41: 1 | F41: 5 | G41: 2290 | H41: 2290 | I41: 38.17 | J41: 1145.1
A42: 4.37 | B42: SF-02410 | C42: Trava-quedas retrátil e guincho (3way) para tripé de trabalho em altura e espaço confinado | D42: un | E42: 1 | F42: 5 | G42: 5185.5 | H42: 5185.5 | I42: 86.43 | J42: 2592.9
A43: 4.38 | B43: SF-02411 | C43: Corda semi-estática 11 mm | D43: m | E43: 500 | F43: 5 | G43: 8.22 | H43: 4110 | I43: 68.5 | J43: 2055
A44: 4.39 | B44: SF-02412 | C44: Mosquetão | D44: un | E44: 25 | F44: 5 | G44: 65 | H44: 1625 | I44: 27.08 | J44: 812.4
A45: 4.40 | B45: SF-02413 | C45: Cinta de ancoragem com anéis | D45: un | E45: 5 | F45: 5 | G45: 74.1 | H45: 370.5 | I45: 6.18 | J45: 185.4
A46: 4.41 | B46: SF-02414 | C46: Trapézio para espaço confinado | D46: un | E46: 1 | F46: 5 | G46: 255.44 | H46: 255.44 | I46: 4.26 | J46: 127.8
A47: 4.42 | B47: SF-02415 | C47: Polia simples para corda | D47: un | E47: 5 | F47: 5 | G47: 216.22 | H47: 1081.1 | I47: 18.02 | J47: 540.6
A48: 4.43 | B48: SF-01209 | C48: Exaustor para espaço confinado | D48: un | E48: 1 | F48: 10 | G48: 4003.13 | H48: 4003.13 | I48: 33.36 | J48: 1000.8
A49: 4.44 | B49: SF-02416 | C49: Alicate crimpador hidráulico | D49: un | E49: 3 | F49: 10 | G49: 724.5 | H49: 2173.5 | I49: 18.11 | J49: 543.3
A50: 4.45 | B50: SF-02417 | C50: Crimpador/cortador de cabos a bateria | D50: un | E50: 1 | F50: 10 | G50: 44089 | H50: 44089 | I50: 367.41 | J50: 11022.3
A51: 4.46 | B51: SF-02418 | C51: Ferramenta multifuncional para barramentos de cobre | D51: un | E51: 1 | F51: 10 | G51: 15295.5 | H51: 15295.5 | I51: 127.46 | J51: 3823.8
A52: 4.47 | B52: SF-02419 | C52: Estampo furador hidráulico | D52: un | E52: 1 | F52: 10 | G52: 10387.04 | H52: 10387.04 | I52: 86.56 | J52: 2596.8
A53: 4.48 | B53: SF-02420 | C53: Esmerilhadeira Angular de 5" com controle de velocidade | D53: un | E53: 3 | F53: 10 | G53: 1158.49 | H53: 3475.47 | I53: 28.96 | J53: 868.8
A54: 4.49 | B54: SF-02421 | C54: Furadeira de impacto 800 W | D54: un | E54: 10 | F54: 10 | G54: 1150.47 | H54: 11504.7 | I54: 95.87 | J54: 2876.1
A55: 4.50 | B55: SF-02422 | C55: Furadeira de impacto sem fio | D55: un | E55: 3 | F55: 10 | G55: 2409.9 | H55: 7229.7 | I55: 60.25 | J55: 1807.5
A56: 4.51 | B56: SF-02423 | C56: Furadeira/parafusadeira sem fio | D56: un | E56: 10 | F56: 10 | G56: 2294.54 | H56: 22945.4 | I56: 191.21 | J56: 5736.3
A57: 4.52 | B57: SF-02424 | C57: Chave de impacto sem fio | D57: un | E57: 3 | F57: 10 | G57: 3019.77 | H57: 9059.31 | I57: 75.49 | J57: 2264.7
A58: 4.53 | B58: SF-00724 | C58: Aspirador de pó industrial | D58: un | E58: 2 | F58: 10 | G58: 3006.62 | H58: 6013.24 | I58: 50.11 | J58: 1503.3
A59: 4.54 | B59: SF-02425 | C59: Soprador de ar sem fio | D59: un | E59: 2 | F59: 10 | G59: 2496.25 | H59: 4992.5 | I59: 41.6 | J59: 1248
A60: 4.55 | B60: SF-02426 | C60: Soprador/aspirador de pó | D60: un | E60: 2 | F60: 10 | G60: 599.9 | H60: 1199.8 | I60: 10 | J60: 300
A61: 4.56 | B61: SF-00735 | C61: Compressor de ar | D61: un | E61: 1 | F61: 10 | G61: 840.32 | H61: 840.32 | I61: 7 | J61: 210
A62: 4.57 | B62: SF-01224 | C62: Lavadora de alta pressão | D62: un | E62: 2 | F62: 10 | G62: 3999.9 | H62: 7999.8 | I62: 66.67 | J62: 2000.1
A63: 4.58 | B63: SF-02427 | C63: Soprador térmico | D63: un | E63: 2 | F63: 10 | G63: 698.8 | H63: 1397.6 | I63: 11.65 | J63: 349.5
A64: 4.59 | B64: SF-02428 | C64: Rotulador | D64: un | E64: 15 | F64: 10 | G64: 417.57 | H64: 6263.55 | I64: 52.2 | J64: 1566
A65: 4.60 | B65: SF-02429 | C65: Cortadora de parede | D65: un | E65: 1 | F65: 10 | G65: 3430.99 | H65: 3430.99 | I65: 28.59 | J65: 857.7
A66: 4.61 | B66: SF-02430 | C66: Serra mármore | D66: un | E66: 2 | F66: 10 | G66: 409.8 | H66: 819.6 | I66: 6.83 | J66: 204.9
A67: 4.62 | B67: SF-02431 | C67: Grupo motor-gerador 3kVA | D67: un | E67: 1 | F67: 10 | G67: 6335.36 | H67: 6335.36 | I67: 52.79 | J67: 1583.7
A68: 4.63 | B68: SF-02432 | C68: Grupo motor-gerador 6kVA | D68: un | E68: 1 | F68: 10 | G68: 4734.14 | H68: 4734.14 | I68: 39.45 | J68: 1183.5
A69: 4.64 | B69: SF-02433 | C69: Ferro de solda 25W | D69: un | E69: 2 | F69: 10 | G69: 39.9 | H69: 79.8 | I69: 0.67 | J69: 20.1
A70: 4.65 | B70: SF-02434 | C70: Ferro de solda 50W | D70: un | E70: 2 | F70: 10 | G70: 41.19 | H70: =E70*G70 -> 82.38 | I70: =ROUND(H70/(12*F70),2) -> 0.69 | J70: 20.7
A71: 4.66 | B71: SF-02435 | C71: Hipot 30 kV | D71: un | E71: 1 | F71: 10 | G71: 29089.74 | H71: 29089.74 | I71: 242.41 | J71: =I71*30 -> 7272.3
A72: 4.67 | B72: SF-02436 | C72: Serra rápida portátil | D72: un | E72: 1 | F72: 10 | G72: 3079.91 | H72: 3079.91 | I72: 25.67 | J72: 770.1
A73: 4.68 | B73: SF-02437 | C73: Policorte | D73: un | E73: 1 | F73: 10 | G73: 1385.7 | H73: 1385.7 | I73: 11.55 | J73: 346.5
A74: 4.69 | B74: SF-02438 | C74: Nível laser de linhas | D74: un | E74: 10 | F74: 10 | G74: 3325.49 | H74: 33254.9 | I74: 277.12 | J74: 8313.6
A75: 4.70 | B75: SF-02439 | C75: Refletor a bateria | D75: un | E75: 5 | F75: 10 | G75: 1156.31 | H75: 5781.55 | I75: 48.18 | J75: 1445.4
A76: 4.71 | B76: SF-02440 | C76: Microretífica | D76: un | E76: 2 | F76: 10 | G76: 872.27 | H76: 1744.54 | I76: 14.54 | J76: 436.2
A77: 4.72 | B77: SF-02441 | C77: Motoesmeril 6 polegadas | D77: un | E77: 3 | F77: 10 | G77: 225 | H77: 675 | I77: 5.63 | J77: 168.9
A78: 4.73 | B78: SF-02442 | C78: Martelo perfurador rompedor 800 W | D78: un | E78: 10 | F78: 10 | G78: 913.5 | H78: 9135 | I78: 76.13 | J78: 2283.9
A79: 4.74 | B79: SF-02443 | C79: Furadeira de impacto 750 W | D79: un | E79: 10 | F79: 10 | G79: 499 | H79: 4990 | I79: 41.58 | J79: 1247.4
A80: 4.75 | B80: SF-02444 | C80: Serra tico-tico | D80: un | E80: 1 | F80: 10 | G80: 644.22 | H80: 644.22 | I80: 5.37 | J80: 161.1
A81: 4.76 | B81: SF-02445 | C81: Serra copo diamantada 25 mm | D81: un | E81: 5 | F81: 1 | G81: 55.53 | H81: 277.65 | I81: 23.14 | J81: 694.2
A82: 4.77 | B82: SF-02446 | C82: Serra copo diamantada 30 mm | D82: un | E82: 5 | F82: 1 | G82: 63.99 | H82: 319.95 | I82: 26.66 | J82: 799.8
A83: 4.78 | B83: SF-02447 | C83: Serra copo diamantada 35 mm | D83: un | E83: 5 | F83: 1 | G83: 76.53 | H83: 382.65 | I83: 31.89 | J83: 956.7
A84: 4.79 | B84: SF-02448 | C84: Serra copo diamantada 45 mm | D84: un | E84: 3 | F84: 1 | G84: 96.9 | H84: 290.7 | I84: 24.23 | J84: 726.9
A85: 4.80 | B85: SF-02449 | C85: Serra copo diamantada 50 mm | D85: un | E85: 3 | F85: 1 | G85: 95.5 | H85: 286.5 | I85: 23.88 | J85: 716.4
A86: 4.81 | B86: SF-02450 | C86: Serra copo diamantada 65 mm | D86: un | E86: 3 | F86: 1 | G86: 142.8 | H86: 428.4 | I86: 35.7 | J86: 1071
A87: 4.82 | B87: SF-02451 | C87: Alicate de corte isolado 160 mm | D87: un | E87: 90 | F87: 5 | G87: 173.39 | H87: 15605.1 | I87: 260.09 | J87: 7802.7
A88: 4.83 | B88: SF-02452 | C88: Alicate de corte frontal isolado 160 mm | D88: un | E88: 20 | F88: 5 | G88: 311.11 | H88: 6222.2 | I88: 103.7 | J88: 3111
A89: 4.84 | B89: SF-02453 | C89: Alicate universal isolado 200 mm | D89: un | E89: 80 | F89: 5 | G89: 173.05 | H89: 13844 | I89: 230.73 | J89: 6921.9
A90: 4.85 | B90: SF-02454 | C90: Alicate bico reto isolado 160 mm | D90: un | E90: 35 | F90: 5 | G90: 143.97 | H90: 5038.95 | I90: 83.98 | J90: 2519.4
A91: 4.86 | B91: SF-02455 | C91: Alicate bico curvo isolado 160 mm | D91: un | E91: 20 | F91: 5 | G91: 187.11 | H91: 3742.2 | I91: 62.37 | J91: 1871.1
A92: 4.87 | B92: SF-02456 | C92: Alicate desencapador isolado 160 mm | D92: un | E92: 30 | F92: 5 | G92: 250.32 | H92: 7509.6 | I92: 125.16 | J92: 3754.8
A93: 4.88 | B93: SF-02457 | C93: Jogo de soquetes 1/2 isolado | D93: un | E93: 2 | F93: 5 | G93: 2275.4 | H93: 4550.8 | I93: 75.85 | J93: 2275.5
A94: 4.89 | B94: SF-02458 | C94: Chave estrela 8 mm isolada | D94: un | E94: 2 | F94: 5 | G94: 117.12 | H94: 234.24 | I94: 3.9 | J94: 117
A95: 4.90 | B95: SF-02459 | C95: Chave fixa 9 mm isolada | D95: un | E95: 2 | F95: 5 | G95: 83.74 | H95: 167.48 | I95: 2.79 | J95: 83.7
A96: 4.91 | B96: SF-02460 | C96: Chave estrela 9 mm isolada | D96: un | E96: 2 | F96: 5 | G96: 117.18 | H96: 234.36 | I96: 3.91 | J96: 117.3
A97: 4.92 | B97: SF-02461 | C97: Chave fixa 10 mm isolada | D97: un | E97: 2 | F97: 5 | G97: 80.83 | H97: 161.66 | I97: 2.69 | J97: 80.7
A98: 4.93 | B98: SF-02462 | C98: Chave estrela 10 mm isolada | D98: un | E98: 2 | F98: 5 | G98: 132.6 | H98: 265.2 | I98: 4.42 | J98: 132.6
A99: 4.94 | B99: SF-02463 | C99: Chave fixa 11 mm isolada | D99: un | E99: 2 | F99: 5 | G99: 84.66 | H99: 169.32 | I99: 2.82 | J99: 84.6
A100: 4.95 | B100: SF-02464 | C100: Chave estrela 11 mm isolada | D100: un | E100: 2 | F100: 5 | G100: 116.24 | H100: 232.48 | I100: 3.87 | J100: 116.1
A101: 4.96 | B101: SF-02465 | C101: Chave fixa 12 mm isolada | D101: un | E101: 2 | F101: 5 | G101: 80.53 | H101: 161.06 | I101: 2.68 | J101: 80.4
A102: 4.97 | B102: SF-02466 | C102: Chave estrela 12 mm isolada | D102: un | E102: 2 | F102: 5 | G102: 137.2 | H102: 274.4 | I102: 4.57 | J102: 137.1
A103: 4.98 | B103: SF-02467 | C103: Chave fixa 13 mm isolada | D103: un | E103: 2 | F103: 5 | G103: 84.24 | H103: 168.48 | I103: 2.81 | J103: 84.3
A104: 4.99 | B104: SF-02468 | C104: Chave estrela 13 mm isolada | D104: un | E104: 2 | F104: 5 | G104: 132.43 | H104: 264.86 | I104: 4.41 | J104: 132.3
A105: 4.100 | B105: SF-02469 | C105: Chave fixa 14 mm isolada | D105: un | E105: 2 | F105: 5 | G105: 88.96 | H105: 177.92 | I105: 2.97 | J105: 89.1
A106: 4.101 | B106: SF-02470 | C106: Chave estrela 14 mm isolada | D106: un | E106: 2 | F106: 5 | G106: 146.86 | H106: 293.72 | I106: 4.9 | J106: 147
A107: 4.102 | B107: SF-02471 | C107: Chave fixa 15 mm isolada | D107: un | E107: 2 | F107: 5 | G107: 92.53 | H107: 185.06 | I107: 3.08 | J107: 92.4
A108: 4.103 | B108: SF-02472 | C108: Chave estrela 15 mm isolada | D108: un | E108: 2 | F108: 5 | G108: 150.92 | H108: 301.84 | I108: 5.03 | J108: 150.9
A109: 4.104 | B109: SF-02473 | C109: Chave fixa 17 mm isolada | D109: un | E109: 2 | F109: 5 | G109: 105.48 | H109: 210.96 | I109: 3.52 | J109: 105.6
A110: 4.105 | B110: SF-02474 | C110: Chave estrela 17 mm isolada | D110: un | E110: 2 | F110: 5 | G110: 156.1 | H110: 312.2 | I110: 5.2 | J110: 156
A111: 4.106 | B111: SF-02475 | C111: Chave fixa 19 mm isolada | D111: un | E111: 2 | F111: 5 | G111: 114.23 | H111: 228.46 | I111: 3.81 | J111: 114.3
A112: 4.107 | B112: SF-02476 | C112: Chave estrela 19 mm isolada | D112: un | E112: 2 | F112: 5 | G112: 160.74 | H112: 321.48 | I112: 5.36 | J112: 160.8
A113: 4.108 | B113: SF-02477 | C113: Chave fixa 22 mm isolada | D113: un | E113: 2 | F113: 5 | G113: 117.63 | H113: 235.26 | I113: 3.92 | J113: 117.6
A114: 4.109 | B114: SF-02478 | C114: Chave estrela 22 mm isolada | D114: un | E114: 2 | F114: 5 | G114: 169.19 | H114: 338.38 | I114: 5.64 | J114: 169.2
A115: 4.110 | B115: SF-02479 | C115: Chave Phillips isolada PH0 | D115: un | E115: 90 | F115: 5 | G115: 47.36 | H115: 4262.4 | I115: 71.04 | J115: 2131.2
A116: 4.111 | B116: SF-02480 | C116: Chave Phillips isolada PH1 | D116: un | E116: 104 | F116: 5 | G116: 51.93 | H116: 5400.72 | I116: 90.01 | J116: 2700.3
A117: 4.112 | B117: SF-02481 | C117: Chave Phillips isolada PH2 | D117: un | E117: 104 | F117: 5 | G117: 59.58 | H117: 6196.32 | I117: 103.27 | J117: 3098.1
A118: 4.113 | B118: SF-02482 | C118: Chave Phillips isolada PH3 | D118: un | E118: 45 | F118: 5 | G118: 70.07 | H118: 3153.15 | I118: 52.55 | J118: 1576.5
A119: 4.114 | B119: SF-02483 | C119: Chave Phillips isolada PH4 | D119: un | E119: 30 | F119: 5 | G119: 80.16 | H119: 2404.8 | I119: 40.08 | J119: 1202.4
A120: 4.115 | B120: SF-02484 | C120: Chave de fenda isolada 2,5 mm | D120: un | E120: 50 | F120: 5 | G120: 32.81 | H120: 1640.5 | I120: 27.34 | J120: 820.2
A121: 4.116 | B121: SF-02485 | C121: Chave de fenda isolada 3 mm | D121: un | E121: 104 | F121: 5 | G121: 34.6 | H121: 3598.4 | I121: 59.97 | J121: 1799.1
A122: 4.117 | B122: SF-02486 | C122: Chave de fenda isolada 4 mm | D122: un | E122: 50 | F122: 5 | G122: 48.55 | H122: 2427.5 | I122: 40.46 | J122: 1213.8
A123: 4.118 | B123: SF-02487 | C123: Chave de fenda isolada 5,5 mm | D123: un | E123: 90 | F123: 5 | G123: 58.84 | H123: 5295.6 | I123: 88.26 | J123: 2647.8
A124: 4.119 | B124: SF-02488 | C124: Chave de fenda isolada 6,5 mm | D124: un | E124: 90 | F124: 5 | G124: 72.52 | H124: 6526.8 | I124: 108.78 | J124: 3263.4
A125: 4.120 | B125: SF-02489 | C125: Chave de fenda isolada 8 mm | D125: un | E125: 30 | F125: 5 | G125: 66.62 | H125: 1998.6 | I125: 33.31 | J125: 999.3
A126: 4.121 | B126: SF-02490 | C126: Faca desencapadora de fios isolada | D126: un | E126: 15 | F126: 5 | G126: 82.7 | H126: 1240.5 | I126: 20.68 | J126: 620.4
A127: 4.122 | B127: SF-02491 | C127: Chave Pozidriv isolada PZ0 | D127: un | E127: 15 | F127: 5 | G127: 52.89 | H127: 793.35 | I127: 13.22 | J127: 396.6
A128: 4.123 | B128: SF-02492 | C128: Chave Pozidriv isolada PZ1 | D128: un | E128: 15 | F128: 5 | G128: 97.15 | H128: 1457.25 | I128: 24.29 | J128: 728.7
A129: 4.124 | B129: SF-02493 | C129: Chave Pozidriv isolada PZ2 | D129: un | E129: 15 | F129: 5 | G129: 157.14 | H129: 2357.1 | I129: 39.29 | J129: 1178.7
A130: 4.125 | B130: SF-02494 | C130: Chave Pozidriv isolada PZ3 | D130: un | E130: 15 | F130: 5 | G130: 82.79 | H130: 1241.85 | I130: 20.7 | J130: 621
A131: 4.126 | B131: SF-02495 | C131: Saca fusível | D131: un | E131: 3 | F131: 5 | G131: 110 | H131: 330 | I131: 5.5 | J131: 165
A132: 4.127 | B132: SF-00761 | C132: Nível manual de alumínio com base magnética 350 mm | D132: un | E132: 15 | F132: 5 | G132: 55.01 | H132: 825.15 | I132: 13.75 | J132: 412.5
A133: 4.128 | B133: SF-02496 | C133: Alicate crimpador com catraca para terminal tubular até 6mm2 | D133: un | E133: 20 | F133: 5 | G133: 357.57 | H133: 7151.4 | I133: 119.19 | J133: 3575.7
A134: 4.129 | B134: SF-02497 | C134: Alicate crimpador com catraca para terminal pré-isolado até 6mm2 | D134: un | E134: 90 | F134: 5 | G134: 341.73 | H134: =E134*G134 -> 30755.7 | I134: =ROUND(H134/(12*F134),2) -> 512.6 | J134: 15378
A135: 4.130 | B135: SF-02498 | C135: Alicate crimpador manual para terminal pré-isolado até 16mm2 | D135: un | E135: 15 | F135: 5 | G135: 190.48 | H135: 2857.2 | I135: 47.62 | J135: =I135*30 -> 1428.6
A136: 4.131 | B136: SF-02499 | C136: Alicate crimpador com catraca para terminal RJ45 | D136: un | E136: 2 | F136: 5 | G136: 108.8795 | H136: 217.759 | I136: 3.63 | J136: 108.9
A137: 4.132 | B137: SF-02500 | C137: Alicate punch down para terminal RJ45 | D137: un | E137: 2 | F137: 5 | G137: 33.08 | H137: 66.16 | I137: 1.1 | J137: 33
A138: 4.133 | B138: SF-02501 | C138: Alicate desencapador automático | D138: un | E138: 90 | F138: 5 | G138: 163.37 | H138: 14703.3 | I138: 245.06 | J138: 7351.8
A139: 4.134 | B139: SF-02502 | C139: Alicate corta cabos com catraca | D139: un | E139: 8 | F139: 5 | G139: 1486.96 | H139: 11895.68 | I139: 198.26 | J139: 5947.8
A140: 4.135 | B140: SF-01192 | C140: Jogo de chave allen curto métrico | D140: un | E140: 10 | F140: 5 | G140: 29.42 | H140: 294.2 | I140: 4.9 | J140: 147
A141: 4.136 | B141: SF-01193 | C141: Jogo de chave allen longo métrico | D141: un | E141: 10 | F141: 5 | G141: 61.9 | H141: 619 | I141: 10.32 | J141: 309.6
A142: 4.137 | B142: SF-02503 | C142: Jogo de chave allen em polegadas | D142: un | E142: 10 | F142: 5 | G142: 57.94 | H142: 579.4 | I142: 9.66 | J142: 289.8
A143: 4.138 | B143: SF-02504 | C143: Jogo de soquete allen 1/2 métrico | D143: un | E143: 5 | F143: 5 | G143: 269.9 | H143: 1349.5 | I143: 22.49 | J143: 674.7
A144: 4.139 | B144: SF-01213 | C144: Jogo de chave torx | D144: un | E144: 10 | F144: 5 | G144: 70.43 | H144: 704.3 | I144: 11.74 | J144: 352.2
A145: 4.140 | B145: SF-02505 | C145: Jogo de soquete 1/2 torx | D145: un | E145: 5 | F145: 5 | G145: 162.24 | H145: 811.2 | I145: 13.52 | J145: 405.6
A146: 4.141 | B146: SF-02506 | C146: Jogo de chaves combinadas com catraca métrico | D146: un | E146: 10 | F146: 5 | G146: 260.9 | H146: 2609 | I146: 43.48 | J146: 1304.4
A147: 4.142 | B147: SF-02507 | C147: Jogo de chaves combinadas com catraca em polegadas | D147: un | E147: 5 | F147: 5 | G147: 199 | H147: 995 | I147: 16.58 | J147: 497.4
A148: 4.143 | B148: SF-02508 | C148: Jogo de chaves combinadas métrico | D148: un | E148: 10 | F148: 5 | G148: 273.19 | H148: 2731.9 | I148: 45.53 | J148: 1365.9
A149: 4.144 | B149: SF-02509 | C149: Jogo de chaves combinadas em polegadas | D149: un | E149: 5 | F149: 5 | G149: 481.03 | H149: 2405.15 | I149: 40.09 | J149: 1202.7
A150: 4.145 | B150: SF-02510 | C150: Jogo de soquetes sextavado longos 1/2 métrico | D150: un | E150: 5 | F150: 5 | G150: 465.12 | H150: 2325.6 | I150: 38.76 | J150: 1162.8
A151: 4.146 | B151: SF-02511 | C151: Jogo de soquetes sextavado 1/2 métrico | D151: un | E151: 5 | F151: 5 | G151: 655.93 | H151: 3279.65 | I151: 54.66 | J151: 1639.8
A152: 4.147 | B152: SF-02512 | C152: Jogo de soquetes 1/2 em polegadas | D152: un | E152: 5 | F152: 5 | G152: 113 | H152: 565 | I152: 9.42 | J152: 282.6
A153: 4.148 | B153: SF-02513 | C153: Jogo de soquetes 3/8 | D153: un | E153: 5 | F153: 5 | G153: 529.9 | H153: 2649.5 | I153: 44.16 | J153: 1324.8
A154: 4.149 | B154: SF-02514 | C154: Jogo de soquetes 1/4 métrico 25 soquetes | D154: un | E154: 5 | F154: 5 | G154: 329.34 | H154: 1646.7 | I154: 27.45 | J154: 823.5
A155: 4.150 | B155: SF-00753 | C155: Jogo de soquetes 1/4 métrico 10 soquetes | D155: un | E155: 10 | F155: 5 | G155: 116.97 | H155: 1169.7 | I155: 19.5 | J155: 585
A156: 4.151 | B156: SF-02515 | C156: Jogo de adaptador de soquetes | D156: un | E156: 5 | F156: 5 | G156: 46.85 | H156: 234.25 | I156: 3.9 | J156: 117
A157: 4.152 | B157: SF-02516 | C157: Jogo de bits | D157: un | E157: 10 | F157: 5 | G157: 107.11 | H157: 1071.1 | I157: 17.85 | J157: 535.5
A158: 4.153 | B158: SF-02517 | C158: Jogo de chaves biela métrico | D158: un | E158: 5 | F158: 5 | G158: 301.99 | H158: 1509.95 | I158: 25.17 | J158: 755.1
A159: 4.154 | B159: SF-02518 | C159: Arco de serra de extra-alta tensão | D159: un | E159: 10 | F159: 5 | G159: 204.16 | H159: 2041.6 | I159: 34.03 | J159: 1020.9
A160: 4.155 | B160: SF-02519 | C160: Jogo de soquetes sextavado de impacto 1/2 métrico | D160: un | E160: 3 | F160: 5 | G160: 216.67 | H160: 650.01 | I160: 10.83 | J160: 324.9
A161: 4.156 | B161: SF-00775 | C161: Tesoura | D161: un | E161: 20 | F161: 5 | G161: 20.72 | H161: 414.4 | I161: 6.91 | J161: 207.3
A162: 4.157 | B162: SF-00747 | C162: Estilete emborrachado de 18 mm | D162: un | E162: 80 | F162: 5 | G162: 31.97 | H162: 2557.6 | I162: 42.63 | J162: 1278.9
A163: 4.158 | B163: SF-02520 | C163: Chave de borne 3 mm | D163: un | E163: 90 | F163: 5 | G163: 10.77 | H163: 969.3 | I163: 16.16 | J163: 484.8
A164: 4.159 | B164: SF-02521 | C164: Chave de borne 4 mm | D164: un | E164: 45 | F164: 5 | G164: 11.6 | H164: 522 | I164: 8.7 | J164: 261
A165: 4.160 | B165: SF-02522 | C165: Jogo de chaves de precisão | D165: un | E165: 13 | F165: 5 | G165: 113 | H165: 1469 | I165: 24.48 | J165: 734.4
A166: 4.161 | B166: SF-02523 | C166: Jogo de chaves de precisão longas | D166: un | E166: 13 | F166: 5 | G166: 123.9 | H166: 1610.7 | I166: 26.85 | J166: 805.5
A167: 4.162 | B167: SF-02524 | C167: Passa fio com alma de aço 20 m | D167: un | E167: 60 | F167: 5 | G167: 25.19 | H167: 1511.4 | I167: 25.19 | J167: 755.7
A168: 4.163 | B168: SF-02525 | C168: Passa fio helicoidal 20 m | D168: un | E168: 60 | F168: 5 | G168: 114.98 | H168: 6898.8 | I168: 114.98 | J168: 3449.4
A169: 4.164 | B169: SF-02526 | C169: Passa fio 50 m com carretel | D169: un | E169: 2 | F169: 5 | G169: 547 | H169: 1094 | I169: 18.23 | J169: 546.9
A170: 4.165 | B170: SF-02527 | C170: Jogo de alicates para anéis | D170: un | E170: 2 | F170: 5 | G170: 139.55 | H170: 279.1 | I170: 4.65 | J170: 139.5
A171: 4.166 | B171: SF-02528 | C171: Jogo de tarraxas manuais | D171: un | E171: 2 | F171: 5 | G171: 3825.66 | H171: 7651.32 | I171: 127.52 | J171: 3825.6
A172: 4.167 | B172: SF-02529 | C172: Alicate de corte diagonal para microeletrônica | D172: un | E172: 16 | F172: 5 | G172: 182.3 | H172: 2916.8 | I172: 48.61 | J172: 1458.3
A173: 4.168 | B173: SF-02530 | C173: Alicate de pressão | D173: un | E173: 15 | F173: 5 | G173: 42.9 | H173: 643.5 | I173: 10.73 | J173: 321.9
A174: 4.169 | B174: SF-00746 | C174: Esquadro 300 mm | D174: un | E174: 25 | F174: 5 | G174: 68 | H174: 1700 | I174: 28.33 | J174: 849.9
A175: 4.170 | B175: SF-02531 | C175: Punção de centro | D175: un | E175: 31 | F175: 5 | G175: 19.6 | H175: 607.6 | I175: 10.13 | J175: 303.9
A176: 4.171 | B176: SF-00771 | C176: Rebitadeira manual | D176: un | E176: 6 | F176: 5 | G176: 147.53 | H176: 885.18 | I176: 14.75 | J176: 442.5
A177: 4.172 | B177: SF-02532 | C177: Rebitadeira de rosca | D177: un | E177: 6 | F177: 5 | G177: 531.99 | H177: 3191.94 | I177: 53.2 | J177: 1596
A178: 4.173 | B178: SF-02533 | C178: Serrote para gesso 150 mm | D178: un | E178: 8 | F178: 5 | G178: 31.26 | H178: 250.08 | I178: 4.17 | J178: 125.1
A179: 4.174 | B179: SF-02534 | C179: Martelo de borracha | D179: un | E179: 10 | F179: 5 | G179: 42.85 | H179: 428.5 | I179: 7.14 | J179: 214.2
A180: 4.175 | B180: SF-00760 | C180: Martelo tipo unha | D180: un | E180: 10 | F180: 5 | G180: 32.93 | H180: 329.3 | I180: 5.49 | J180: 164.7
A181: 4.176 | B181: SF-02535 | C181: Martelo tipo pena | D181: un | E181: 10 | F181: 5 | G181: 56.05 | H181: 560.5 | I181: 9.34 | J181: 280.2
A182: 4.177 | B182: SF-02536 | C182: Martelo com borda em plástico | D182: un | E182: 10 | F182: 5 | G182: 91 | H182: 910 | I182: 15.17 | J182: 455.1
A183: 4.178 | B183: SF-00773 | C183: Serrote 20 polegadas | D183: un | E183: 5 | F183: 5 | G183: 126.18 | H183: 630.9 | I183: 10.52 | J183: 315.6
A184: 4.179 | B184: SF-02537 | C184: Marreta oitavada 1000g | D184: un | E184: 5 | F184: 5 | G184: 27.8 | H184: 139 | I184: 2.32 | J184: 69.6
A185: 4.180 | B185: SF-02538 | C185: Morsa de bancada | D185: un | E185: 5 | F185: 5 | G185: 395.1 | H185: 1975.5 | I185: 32.93 | J185: 987.9
A186: 4.181 | B186: SF-02539 | C186: Riscador de metal duro | D186: un | E186: 15 | F186: 5 | G186: 24.74 | H186: 371.1 | I186: 6.19 | J186: 185.7
A187: 4.182 | B187: SF-02540 | C187: Jogo de macho e cossinete | D187: un | E187: 2 | F187: 5 | G187: 1101.1 | H187: 2202.2 | I187: 36.7 | J187: 1101
A188: 4.183 | B188: SF-01201 | C188: Talhadeira | D188: un | E188: 5 | F188: 5 | G188: 45.94 | H188: 229.7 | I188: 3.83 | J188: 114.9
A189: 4.184 | B189: SF-01197 | C189: Marreta 2 kg | D189: un | E189: 5 | F189: 5 | G189: 54.96 | H189: 274.8 | I189: 4.58 | J189: 137.4
A190: 4.185 | B190: SF-00810 | C190: Caixa plástica para massas (masseira) 20 L | D190: un | E190: 5 | F190: 5 | G190: 15.8 | H190: 79 | I190: 1.32 | J190: 39.6
A191: 4.186 | B191: SF-00811 | C191: Colher de pedreiro 9" | D191: un | E191: 5 | F191: 5 | G191: 30.78 | H191: 153.9 | I191: 2.57 | J191: 77.1
A192: 4.187 | B192: SF-00814 | C192: Desempenadeira de aço lisa | D192: un | E192: 5 | F192: 5 | G192: 19.42 | H192: 97.1 | I192: 1.62 | J192: 48.6
A193: 4.188 | B193: SF-00809 | C193: Broxa Retangular | D193: un | E193: 5 | F193: 5 | G193: 26.38 | H193: 131.9 | I193: 2.2 | J193: 66
A194: 4.189 | B194: SF-00725 | C194: Balde metálico | D194: un | E194: 5 | F194: 5 | G194: 20.12 | H194: 100.6 | I194: 1.68 | J194: 50.4
A195: 4.190 | B195: SF-00728 | C195: Carrinho de mão reforçado | D195: un | E195: 2 | F195: 5 | G195: 280.36 | H195: 560.72 | I195: 9.35 | J195: 280.5
A196: 4.191 | B196: SF-00772 | C196: Régua de alumínio para pedreiro com 2m | D196: un | E196: 2 | F196: 5 | G196: 36.01 | H196: 72.02 | I196: 1.2 | J196: 36
A197: 4.192 | B197: SF-00745 | C197: Espátula forjada de 8 cm | D197: un | E197: 5 | F197: 5 | G197: 24.39 | H197: 121.95 | I197: 2.03 | J197: 60.9
A198: 4.193 | B198: SF-02541 | C198: Alicate amperímetro 400 A | D198: un | E198: 47 | F198: 10 | G198: 654.55 | H198: =E198*G198 -> 30763.85 | I198: =ROUND(H198/(12*F198),2) -> 256.37 | J198: 7691.1
A199: 4.194 | B199: SF-02542 | C199: Alicate amperímetro 1000 A | D199: un | E199: 41 | F199: 10 | G199: 5166.32 | H199: 211819.12 | I199: 1765.16 | J199: =I199*30 -> 52954.8
A200: 4.195 | B200: SF-02543 | C200: Termômetro infravermelho | D200: un | E200: 32 | F200: 10 | G200: 396.99 | H200: 12703.68 | I200: 105.86 | J200: 3175.8
A201: 4.196 | B201: SF-02544 | C201: Trena a laser 40m | D201: un | E201: 12 | F201: 10 | G201: 388.79 | H201: 4665.48 | I201: 38.88 | J201: 1166.4
... 31 more rows

Sheet Ax9-P5-Valor Global
A1: Manutenção Elétrica - Pregão Eletrônico nº 067/2021
A2: ANEXO 9 - Planilha 5 – Valor Global Estimado para 30 (trinta) meses
A4: Item | B4: Descrição | C4: Fator de Utilização | D4: Subtotal do Item | E4: Custo Global Estimado p/ 30 (trinta) Meses
C5: (A) | D5: (B) | E5: (C)=(A)*(B)
A6: 1 | B6: Subtotal de Equipe de Dedicação Exclusiva | C6: N/A | D6: ='Ax9-P1-MDO-Nao Desonerado'!J27 -> 20404170 | E6: =D6 -> 20404170
A7: 2 | B7: Subtotal de Serviços sob Demanda | C7: 0.5 | D7: ='Ax9-P2-Serviços'!J17 -> 250786.75 | E7: =ROUND(C7*D7,2) -> 125393.38
A8: 3 | B8: Subtotal de Materiais | C8: 0.1 | D8: ='Ax9-P3-Materiais'!J923 -> 51244829.68 | E8: =ROUND(C8*D8,2) -> 5124482.97
A9: 4 | B9: Subtotal de Depreciação de Ferramental | C9: N/A | D9: ='Ax9-P4-Ferramental'!J232 -> 568222.8 | E9: =D9 -> 568222.8
A10: Valor Global Estimado para 30 Meses | E10: =SUM(E6:E9) -> 26222269.15

Sheet Desconto Médio
A1: Manutenção Elétrica - Pregão Eletrônico nº 067/2021
A2: PLANILHA ORÇAMENTÁRIA - Cálculo do Desconto Médio
A4: Item | B4: Descrição | C4: Valor Orçado pelo Senado Federal (R$) | D4: Subtotal do Item (R$) | E4: Desconto Médio
A5: 2 | B5: Subtotal de Serviços sob Demanda | C5: 250786.75 | D5: ='Ax9-P2-Serviços'!J17 -> 250786.75 | E5: =ROUND(1-(D5/C5), 4) -> 0
A6: 3 | B6: Subtotal de Materiais | C6: 51244829.9 | D6: ='Ax9-P3-Materiais'!J923 -> 51244829.68 | E6: =ROUND(1-(D6/C6), 4) -> 0

Sheet BDI
A1: ='Ax9-P2-Serviços'!A1 -> Manutenção Elétrica - Pregão Eletrônico nº 067/2021
A2: BENEFÍCIOS E DESPESAS INDIRETAS - BDI
A4: BDI Edificações | D4: BDI mero fornecimento
A5: Componentes do BDI | B5: Cálculo sem CPRB | D5: Componentes do BDI | E5: Cálculo sem CPRB
B6: não-desonerado | E6: não-desonerado
B7: % considerado | E7: % considerado
A8: AC | B8: 0.035 | D8: AC | E8: 0.0175
A9: S+G | B9: 0.008 | D9: S+G | E9: 0.0039
A10: R | B10: 0.0125 | D10: R | E10: 0.0056
A11: DF | B11: 0.0076 | D11: DF | E11: 0.0085
A12: L | B12: 0.0678 | D12: L | E12: 0.035
A13: PIS | B13: 0.0065 | D13: PIS | E13: 0.0065
A14: COFINS | B14: 0.03 | D14: COFINS | E14: 0.03
A15: CPRB | B15: 0 | D15: CPRB | E15: 0
A16: ISS | B16: 0.01 | D16: ISS | E16: 0
A17: BDI Edificações | B17: =ROUND(((1+B8+B9+B10)*(1+B11)*(1+B12))/(1-(B13+B14+B15+B16))-1,4) -> 0.191 | D17: BDI mero fornecimento | E17: =ROUND(((1+E8+E9+E10)*(1+E11)*(1+E12))/(1-(E13+E14+E15+E16))-1,4) -> 0.1126
A40: Fontes: Acórdãos 2.369/2011-TCU-Plenário e 2.622/2013-TCU-Plenário.
